Workbook

Sheet سلطان
A3: A | B3: =TODAY() -> 2018-03-26 | C3: تاريخ الهجري | F3: 1 | P3: الشقق الفارغه | Q3: 12
A4: A | B4: =TODAY() -> 2018-03-26 | C4: الموافق | J4: جوال= | P4: المحلات الفارغه
A5: =IF(D5>0,"A","B") -> A | B5: تأمين | C5: رقم الجوال | D5: عدد أيام تأخير | E5: ملاحظات | F5: المطلوب دفعه | G5: تاريخ الانتهاء | H5: ايجار يومي | I5: طريقة الدفع | J5: الباقي | K5: المطلوب | L5: الإجمالي | M5: ماء | N5: ألأيجار | O5: رقم الشقة | P5: اسم المستأجر | Q5: الرقم
A6: =IF(D6<1000,IF(D6>0,"A","B"),"c") -> A | B6: مع المالك | C6: 504840071 | D6: =IF(سلطان!$G6<$B$4,$B$4-سلطان!$G6,0) -> 8 | G6: 2018-03-18 | H6: 2017-09-21 | I6: 6 | J6: =سلطان!$L6-سلطان!$K6 -> 9100 | K6: =(سلطان!$L6/$Q$3)*سلطان!$I6 -> 9100 | L6: =سلطان!$N6+سلطان!$M6 -> 18200 | M6: 1200 | N6: 17000 | O6: 1 | P6: عصام الجمل | Q6: 1 | R6: =O6 -> 1
A7: =IF(D7<1000,IF(D7>0,"A","B"),"c") -> B | B7: لا يوجد | C7: 538616819 | D7: =IF(سلطان!$G7<$B$4,$B$4-سلطان!$G7,0) -> 0 | G7: 2018-05-16 | H7: 2018-02-16 | I7: 3 | J7: =سلطان!$L7-سلطان!$K7 -> 8325 | K7: =(سلطان!$L7/$Q$3)*سلطان!$I7 -> 2775 | L7: =سلطان!$N7+سلطان!$M7 -> 11100 | M7: 600 | N7: 10500 | O7: 2 | P7: مبارك حسين | Q7: =Q6+1 -> 2 | R7: =O7 -> 2
A8: A | B8: مع المالك | C8: 504840071 | D8: =IF(سلطان!$G8<$B$4,$B$4-سلطان!$G8,0) -> 67 | G8: 2018-01-18 | H8: 2017-08-23 | I8: 6 | J8: =سلطان!$L8-سلطان!$K8 -> 6300 | K8: =(سلطان!$L8/$Q$3)*سلطان!$I8 -> 6300 | L8: =سلطان!$N8+سلطان!$M8 -> 12600 | M8: 600 | N8: 12000 | O8: 3 | P8: عصام الجمل | Q8: =Q7+1 -> 3 | R8: 3
A9: c | D9: =IF(سلطان!$G9<$B$4,$B$4-سلطان!$G9,0) -> 43185 | J9: =سلطان!$L9-سلطان!$K9 -> 0 | K9: =(سلطان!$L9/$Q$3)*سلطان!$I9 -> 0 | L9: =سلطان!$N9+سلطان!$M9 -> 0 | O9: 4 | P9: فاضي | Q9: 4 | R9: 4
A10: B | B10: مع المالك | C10: 542179632 | D10: =IF(سلطان!$G10<$B$4,$B$4-سلطان!$G10,0) -> 0 | G10: 2018-05-04 | H10: 2017-11-07 | I10: 3 | J10: =سلطان!$L10-سلطان!$K10 -> 13575 | K10: =(سلطان!$L10/$Q$3)*سلطان!$I10 -> 4525 | L10: =سلطان!$N10+سلطان!$M10 -> 18100 | M10: 600 | N10: 17500 | O10: 5 | P10: محمد جليل احمد | Q10: 5 | R10: 5
A11: c | D11: =IF(سلطان!$G11<$B$4,$B$4-سلطان!$G11,0) -> 43185 | J11: =سلطان!$L11-سلطان!$K11 -> 18100 | K11: =(سلطان!$L11/$Q$3)*سلطان!$I11 -> 0 | L11: =سلطان!$N11+سلطان!$M11 -> 18100 | M11: 600 | N11: 17500 | O11: 6 | P11: فاضي | Q11: 6 | R11: 6
A12: B | B12: مع المالك | C12: 506217530 | D12: =IF(سلطان!$G12<$B$4,$B$4-سلطان!$G12,0) -> 0 | G12: 2018-04-15 | I12: 3 | J12: =سلطان!$L12-سلطان!$K12 -> 13125 | K12: =(سلطان!$L12/$Q$3)*سلطان!$I12 -> 4375 | L12: =سلطان!$N12+سلطان!$M12 -> 17500 | N12: 17500 | O12: 7 | P12: خالد رمزي | Q12: 7 | R12: 7
A13: B | B13: مع المالك | C13: 530127427 | D13: =IF(سلطان!$G13<$B$4,$B$4-سلطان!$G13,0) -> 0 | G13: 2018-06-15 | H13: 2017-12-19 | I13: 6 | J13: =سلطان!$L13-سلطان!$K13 -> 8300 | K13: =(سلطان!$L13/$Q$3)*سلطان!$I13 -> 8300 | L13: =سلطان!$N13+سلطان!$M13 -> 16600 | M13: 600 | N13: 16000 | O13: 8 | P13: عبدالجبار خان | Q13: 8 | R13: 8
A14: B | B14: مع المالك | C14: 503802665 | D14: =IF(سلطان!$G14<$B$4,$B$4-سلطان!$G14,0) -> 0 | G14: 2018-05-29 | H14: 2017-12-02 | I14: 6 | J14: =سلطان!$L14-سلطان!$K14 -> 8800 | K14: =(سلطان!$L14/$Q$3)*سلطان!$I14 -> 8800 | L14: =سلطان!$N14+سلطان!$M14 -> 17600 | M14: 600 | N14: 17000 | O14: 9 | P14: كونسيري سوزان | Q14: 9 | R14: 9
A15: c | D15: =IF(سلطان!$G15<$B$4,$B$4-سلطان!$G15,0) -> 43185 | J15: =سلطان!$L15-سلطان!$K15 -> 0 | K15: =(سلطان!$L15/$Q$3)*سلطان!$I15 -> 0 | L15: =سلطان!$N15+سلطان!$M15 -> 0 | O15: 10 | P15: فاضي | Q15: 10 | R15: 10
A16: c | D16: =IF(سلطان!$G16<$B$4,$B$4-سلطان!$G16,0) -> 43185 | J16: =سلطان!$L16-سلطان!$K16 -> 0 | K16: =(سلطان!$L16/$Q$3)*سلطان!$I16 -> 0 | L16: =سلطان!$N16+سلطان!$M16 -> 0 | O16: 11 | P16: فاضي | Q16: 11 | R16: 11
A17: A | B17: مع المالك | D17: =IF(سلطان!$G17<$B$4,$B$4-سلطان!$G17,0) -> 20 | G17: 2018-03-06 | H17: 2017-12-06 | I17: 3 | J17: =سلطان!$L17-سلطان!$K17 -> 12450 | K17: =(سلطان!$L17/$Q$3)*سلطان!$I17 -> 4150 | L17: =سلطان!$N17+سلطان!$M17 -> 16600 | M17: 600 | N17: 16000 | O17: 12 | P17: حماد صالح | Q17: 12 | R17: 12
A18: B | B18: مع المالك | D18: =IF(سلطان!$G18<$B$4,$B$4-سلطان!$G18,0) -> 0 | G18: 2018-06-28 | H18: 2017-07-08 | I18: 6 | J18: =سلطان!$L18-سلطان!$K18 -> 9300 | K18: =(سلطان!$L18/$Q$3)*سلطان!$I18 -> 9300 | L18: =سلطان!$N18+سلطان!$M18 -> 18600 | M18: 600 | N18: 18000 | O18: 13 | P18: وقار جويد محمد | Q18: 13 | R18: 13
A19: A | B19: مع المالك | D19: =IF(سلطان!$G19<$B$4,$B$4-سلطان!$G19,0) -> 38 | G19: 2018-02-16 | H19: 2017-08-23 | I19: 3 | J19: =سلطان!$L19-سلطان!$K19 -> 13950 | K19: =(سلطان!$L19/$Q$3)*سلطان!$I19 -> 4650 | L19: =سلطان!$N19+سلطان!$M19 -> 18600 | M19: 600 | N19: 18000 | O19: 14 | P19: شريف السيد متولى عدوى | Q19: 14 | R19: 14
A20: A | B20: مع المالك | D20: =IF(سلطان!$G20<$B$4,$B$4-سلطان!$G20,0) -> 8 | G20: 2018-03-18 | H20: 2017-03-29 | I20: 6 | J20: =سلطان!$L20-سلطان!$K20 -> 9300 | K20: =(سلطان!$L20/$Q$3)*سلطان!$I20 -> 9300 | L20: =سلطان!$N20+سلطان!$M20 -> 18600 | M20: 600 | N20: 18000 | O20: 15 | P20: مانيش امباداس سونا واني | Q20: 15 | R20: 15
A21: B | B21: مع المالك | D21: =IF(سلطان!$G21<$B$4,$B$4-سلطان!$G21,0) -> 0 | G21: 2018-05-29 | H21: 2017-09-05 | I21: 6 | J21: =سلطان!$L21-سلطان!$K21 -> 9050 | K21: =(سلطان!$L21/$Q$3)*سلطان!$I21 -> 9050 | L21: =سلطان!$N21+سلطان!$M21 -> 18100 | M21: 600 | N21: 17500 | O21: 16 | P21: محمد مزار الدين | Q21: 16 | R21: 16
A22: B | B22: مع المالك | D22: =IF(سلطان!$G22<$B$4,$B$4-سلطان!$G22,0) -> 0 | G22: 2018-05-15 | H22: 2017-11-19 | I22: 3 | J22: =سلطان!$L22-سلطان!$K22 -> 13950 | K22: =(سلطان!$L22/$Q$3)*سلطان!$I22 -> 4650 | L22: =سلطان!$N22+سلطان!$M22 -> 18600 | M22: 600 | N22: 18000 | O22: 17 | P22: اقبال احمد سيد | Q22: 17 | R22: 17
A23: c | D23: =IF(سلطان!$G23<$B$4,$B$4-سلطان!$G23,0) -> 43185 | J23: =سلطان!$L23-سلطان!$K23 -> 0 | K23: =(سلطان!$L23/$Q$3)*سلطان!$I23 -> 0 | L23: =سلطان!$N23+سلطان!$M23 -> 0 | O23: 18 | P23: فاضي | Q23: 18 | R23: 18
A24: c | D24: =IF(سلطان!$G24<$B$4,$B$4-سلطان!$G24,0) -> 43185 | J24: =سلطان!$L24-سلطان!$K24 -> 0 | K24: =(سلطان!$L24/$Q$3)*سلطان!$I24 -> 0 | L24: =سلطان!$N24+سلطان!$M24 -> 0 | O24: 19 | P24: فاضي | Q24: 19 | R24: 19
A25: B | B25: مع المالك | D25: =IF(سلطان!$G25<$B$4,$B$4-سلطان!$G25,0) -> 0 | G25: 29/8/1439 | H25: 29/5/1439 | I25: 3 | J25: =سلطان!$L25-سلطان!$K25 -> 12750 | K25: =(سلطان!$L25/$Q$3)*سلطان!$I25 -> 4250 | L25: =سلطان!$N25+سلطان!$M25 -> 17000 | M25: 0 | N25: 17000 | O25: 20 | P25: محمد امام نضير | Q25: 20 | R25: 20
A26: B | B26: مع المالك | D26: =IF(سلطان!$G26<$B$4,$B$4-سلطان!$G26,0) -> 0 | G26: 2018-04-17 | H26: 2017-10-22 | I26: 6 | J26: =سلطان!$L26-سلطان!$K26 -> 10050 | K26: =(سلطان!$L26/$Q$3)*سلطان!$I26 -> 10050 | L26: =سلطان!$N26+سلطان!$M26 -> 20100 | M26: 600 | N26: 19500 | O26: 21 | P26: البيرتو بال ماريس ديليرا | Q26: 21 | R26: 21
A27: c | D27: =IF(سلطان!$G27<$B$4,$B$4-سلطان!$G27,0) -> 43185 | J27: =سلطان!$L27-سلطان!$K27 -> 0 | K27: =(سلطان!$L27/$Q$3)*سلطان!$I27 -> 0 | L27: =سلطان!$N27+سلطان!$M27 -> 0 | O27: M1 | P27: فاضي | Q27: 22 | R27: M1
A28: B | B28: مع المالك | D28: =IF(سلطان!$G28<$B$4,$B$4-سلطان!$G28,0) -> 0 | G28: 2018-07-28 | H28: 2017-08-07 | I28: 6 | J28: =سلطان!$L28-سلطان!$K28 -> 30000 | K28: =(سلطان!$L28/$Q$3)*سلطان!$I28 -> 30000 | L28: =سلطان!$N28+سلطان!$M28 -> 60000 | N28: 60000 | O28: M2 | P28: بدر خالد القلعي | Q28: 23 | R28: M2
A29: A | B29: مع المالك | D29: =IF(سلطان!$G29<$B$4,$B$4-سلطان!$G29,0) -> 69 | G29: 2018-01-16 | H29: 2017-07-23 | I29: 6 | J29: =سلطان!$L29-سلطان!$K29 -> 30000 | K29: =(سلطان!$L29/$Q$3)*سلطان!$I29 -> 30000 | L29: =سلطان!$N29+سلطان!$M29 -> 60000 | N29: 60000 | O29: M3 | P29: سليمان بن ابراهيم بن محمد الرميخاني | Q29: 24 | R29: M3
A30: A | B30: مع المالك | D30: =IF(سلطان!$G30<$B$4,$B$4-سلطان!$G30,0) -> 97 | G30: 2017-12-19 | H30: 2017-06-25 | I30: 6 | J30: =سلطان!$L30-سلطان!$K30 -> 31000 | K30: =(سلطان!$L30/$Q$3)*سلطان!$I30 -> 31000 | L30: =سلطان!$N30+سلطان!$M30 -> 62000 | M30: 2000 | N30: 60000 | O30: M4 | P30: عصام الجمل | Q30: 25 | R30: M4
A31: A | B31: مع المالك | D31: =IF(سلطان!$G31<$B$4,$B$4-سلطان!$G31,0) -> 69 | G31: 2018-01-16 | H31: 2017-07-23 | I31: 6 | J31: =سلطان!$L31-سلطان!$K31 -> 36000 | K31: =(سلطان!$L31/$Q$3)*سلطان!$I31 -> 36000 | L31: =سلطان!$N31+سلطان!$M31 -> 72000 | M31: 2000 | N31: 70000 | O31: M5 | P31: عبدالعزيز عبدالله الغفيلي | Q31: 26 | R31: M5
A32: A | B32: مع المالك | D32: =IF(سلطان!$G32<$B$4,$B$4-سلطان!$G32,0) -> 9 | G32: 2018-03-17 | H32: 2017-12-17 | I32: 3 | J32: =سلطان!$L32-سلطان!$K32 -> 15000 | K32: =(سلطان!$L32/$Q$3)*سلطان!$I32 -> 5000 | L32: =سلطان!$N32+سلطان!$M32 -> 20000 | N32: 20000 | O32: M6 | P32: علي بن عبدالحميد بن علي المبيوق | Q32: 27 | R32: M6
A33: A | B33: مع المالك | D33: =IF(سلطان!$G33<$B$4,$B$4-سلطان!$G33,0) -> 485 | G33: 2016-11-26 | H33: 2016-08-29 | I33: 3 | J33: =سلطان!$L33-سلطان!$K33 -> 15000 | K33: =(سلطان!$L33/$Q$3)*سلطان!$I33 -> 5000 | L33: =سلطان!$N33+سلطان!$M33 -> 20000 | N33: 20000 | O33: M7 | P33: يوسف عبدالله علي اليوسف | Q33: 28 | R33: M7
A34: A | B34: مع المالك | D34: =IF(سلطان!$G34<$B$4,$B$4-سلطان!$G34,0) -> 69 | G34: 2018-01-16 | H34: 2017-10-19 | I34: 3 | J34: =سلطان!$L34-سلطان!$K34 -> 15000 | K34: =(سلطان!$L34/$Q$3)*سلطان!$I34 -> 5000 | L34: =سلطان!$N34+سلطان!$M34 -> 20000 | N34: 20000 | O34: M8 | P34: هاشم عبدالله الناصر | Q34: 29 | R34: M8
A35: B | J35: =SUBTOTAL(109,سلطان!$J$6:$J$34) -> 348425 | K35: =SUBTOTAL(109,سلطان!$K$6:$K$34) -> 241575 | L35: =SUBTOTAL(109,سلطان!$L$6:$L$34) -> 590000 | M35: =SUBTOTAL(109,سلطان!$M$6:$M$34) -> 13000 | N35: =SUBTOTAL(109,سلطان!$N$6:$N$34) -> 577000 | R35: 0

Sheet الجوهرة
A3: A | B3: =TODAY() -> 2018-03-26 | C3: تاريخ الهجري | P3: الشقق الفارغه | Q3: 12
A4: A | B4: =TODAY() -> 2018-03-26 | C4: الموافق | F4: 2 | J4: جوال= | P4: المحلات الفارغه
A5: =IF(D5>0,"A","B") -> A | B5: تأمين | C5: رقم الجوال | D5: عدد أيام تأخير | E5: ملاحظات | F5: المدفوع | G5: تاريخ الانتهاء | H5: تاريخ ابتداءالايجار | I5: طريقة الدفع | J5: الباقي | K5: المدفوع2 | L5: الإجمالي | M5: ماء | N5: ألأيجار | O5: رقم الشقة | P5: اسم المستأجر | Q5: الرقم
A6: =IF(D6<1000,IF(D6>0,"A","B"),"c") -> B | B6: 1000 | D6: =IF(Table13[[#This Row],[ تاريخ الانتهاء]]<$B$4,$B$4-Table13[[#This Row],[ تاريخ الانتهاء]],0) -> 0 | G6: 2018-07-13 | H6: 2018-01-17 | I6: 6 | J6: =Table13[[#This Row],[الإجمالي]]-Table13[[#This Row],[المدفوع2]] -> 13000 | K6: 13500 | L6: =Table13[[#This Row],[ ألأيجار]]+Table13[[#This Row],[ماء]] -> 26500 | M6: 500 | N6: 26000 | O6: 101 | P6: محمود سامي كمال هنداوي | Q6: 1
A7: =IF(D7<1000,IF(D7>0,"A","B"),"c") -> B | B7: 1000 | D7: =IF(Table13[[#This Row],[ تاريخ الانتهاء]]<$B$4,$B$4-Table13[[#This Row],[ تاريخ الانتهاء]],0) -> 0 | G7: 2018-03-27 | H7: 2017-10-01 | I7: 6 | J7: =Table13[[#This Row],[الإجمالي]]-Table13[[#This Row],[المدفوع2]] -> 16000 | K7: 16500 | L7: =Table13[[#This Row],[ ألأيجار]]+Table13[[#This Row],[ماء]] -> 32500 | M7: 500 | N7: 32000 | O7: 102 | P7: كريسوبي موريس ريموند تراترات | Q7: =Q6+1 -> 2
A8: B | B8: 1000 | D8: =IF(Table13[[#This Row],[ تاريخ الانتهاء]]<$B$4,$B$4-Table13[[#This Row],[ تاريخ الانتهاء]],0) -> 0 | G8: 2018-07-09 | H8: 2017-07-19 | I8: 6 | J8: =Table13[[#This Row],[الإجمالي]]-Table13[[#This Row],[المدفوع2]] -> 16000 | K8: 16500 | L8: =Table13[[#This Row],[ ألأيجار]]+Table13[[#This Row],[ماء]] -> 32500 | M8: 500 | N8: 32000 | O8: 103 | P8: وئل فتحي بوغولة | Q8: =Q7+1 -> 3
A9: A | B9: 1000 | D9: =IF(Table13[[#This Row],[ تاريخ الانتهاء]]<$B$4,$B$4-Table13[[#This Row],[ تاريخ الانتهاء]],0) -> 2 | G9: 2018-03-24 | H9: 2017-09-28 | I9: 6 | J9: =Table13[[#This Row],[الإجمالي]]-Table13[[#This Row],[المدفوع2]] -> 13000 | K9: 13500 | L9: =Table13[[#This Row],[ ألأيجار]]+Table13[[#This Row],[ماء]] -> 26500 | M9: 500 | N9: 26000 | O9: 104 | P9: حافظ بو بكر كشكار | Q9: 4
A10: A | B10: 1000 | D10: =IF(Table13[[#This Row],[ تاريخ الانتهاء]]<$B$4,$B$4-Table13[[#This Row],[ تاريخ الانتهاء]],0) -> 18 | G10: 2018-03-08 | H10: 2017-09-12 | I10: 6 | J10: =Table13[[#This Row],[الإجمالي]]-Table13[[#This Row],[المدفوع2]] -> 13000 | K10: 13500 | L10: =Table13[[#This Row],[ ألأيجار]]+Table13[[#This Row],[ماء]] -> 26500 | M10: 500 | N10: 26000 | O10: 105 | P10: عادل ابوبكر الحيدري | Q10: 5
A11: B | B11: 1000 | D11: =IF(Table13[[#This Row],[ تاريخ الانتهاء]]<$B$4,$B$4-Table13[[#This Row],[ تاريخ الانتهاء]],0) -> 0 | G11: 2018-06-19 | H11: 2017-10-05 | I11: 6 | J11: =Table13[[#This Row],[الإجمالي]]-Table13[[#This Row],[المدفوع2]] -> 16000 | K11: 16500 | L11: =Table13[[#This Row],[ ألأيجار]]+Table13[[#This Row],[ماء]] -> 32500 | M11: 500 | N11: 32000 | O11: 106 | P11: ديشان سوجيوانا سامبات وانياراشيج | Q11: 6
A12: B | B12: 1000 | D12: =IF(Table13[[#This Row],[ تاريخ الانتهاء]]<$B$4,$B$4-Table13[[#This Row],[ تاريخ الانتهاء]],0) -> 0 | G12: 2018-07-21 | H12: 2017-08-01 | I12: 6 | J12: =Table13[[#This Row],[الإجمالي]]-Table13[[#This Row],[المدفوع2]] -> 16000 | K12: 16500 | L12: =Table13[[#This Row],[ ألأيجار]]+Table13[[#This Row],[ماء]] -> 32500 | M12: 500 | N12: 32000 | O12: 107 | P12: سهيل يحي بحمد | Q12: 7
A13: B | B13: 1000 | D13: =IF(Table13[[#This Row],[ تاريخ الانتهاء]]<$B$4,$B$4-Table13[[#This Row],[ تاريخ الانتهاء]],0) -> 0 | G13: 2018-08-24 | H13: 2018-03-01 | I13: 6 | J13: =Table13[[#This Row],[الإجمالي]]-Table13[[#This Row],[المدفوع2]] -> 13000 | K13: 13500 | L13: =Table13[[#This Row],[ ألأيجار]]+Table13[[#This Row],[ماء]] -> 26500 | M13: 500 | N13: 26000 | O13: 108 | P13: فتحي سمير محمد فتحي عرفات | Q13: 8
A14: B | B14: 1000 | D14: =IF(Table13[[#This Row],[ تاريخ الانتهاء]]<$B$4,$B$4-Table13[[#This Row],[ تاريخ الانتهاء]],0) -> 0 | G14: 2018-03-31 | H14: 2017-10-05 | I14: 6 | J14: =Table13[[#This Row],[الإجمالي]]-Table13[[#This Row],[المدفوع2]] -> 13000 | K14: 13500 | L14: =Table13[[#This Row],[ ألأيجار]]+Table13[[#This Row],[ماء]] -> 26500 | M14: 500 | N14: 26000 | O14: 201 | P14: كالانا سامباث جودابيتيا غادباج | Q14: 9
A15: A | B15: بدون | D15: =IF(Table13[[#This Row],[ تاريخ الانتهاء]]<$B$4,$B$4-Table13[[#This Row],[ تاريخ الانتهاء]],0) -> 70 | G15: 2018-01-15 | H15: 2017-07-15 | I15: 6 | J15: =Table13[[#This Row],[الإجمالي]]-Table13[[#This Row],[المدفوع2]] -> 16500 | K15: 16000 | L15: =Table13[[#This Row],[ ألأيجار]]+Table13[[#This Row],[ماء]] -> 32500 | M15: 500 | N15: 32000 | O15: 202 | P15: ماريون تيجاني | Q15: 10
A16: B | B16: 1000 | D16: =IF(Table13[[#This Row],[ تاريخ الانتهاء]]<$B$4,$B$4-Table13[[#This Row],[ تاريخ الانتهاء]],0) -> 0 | G16: 2018-07-20 | H16: 2017-08-01 | I16: 6 | J16: =Table13[[#This Row],[الإجمالي]]-Table13[[#This Row],[المدفوع2]] -> 16000 | K16: 16500 | L16: =Table13[[#This Row],[ ألأيجار]]+Table13[[#This Row],[ماء]] -> 32500 | M16: 500 | N16: 32000 | O16: 203 | P16: طارق دسوقى بكر درويش | Q16: 11
A17: B | B17: 1000 | D17: =IF(Table13[[#This Row],[ تاريخ الانتهاء]]<$B$4,$B$4-Table13[[#This Row],[ تاريخ الانتهاء]],0) -> 0 | G17: 2018-07-27 | H17: 2018-02-01 | I17: 6 | J17: =Table13[[#This Row],[الإجمالي]]-Table13[[#This Row],[المدفوع2]] -> 13000 | K17: 13500 | L17: =Table13[[#This Row],[ ألأيجار]]+Table13[[#This Row],[ماء]] -> 26500 | M17: 500 | N17: 26000 | O17: 204 | P17: حمدي يونساسماعيل علي | Q17: 12
A18: A | B18: 1000 | D18: =IF(Table13[[#This Row],[ تاريخ الانتهاء]]<$B$4,$B$4-Table13[[#This Row],[ تاريخ الانتهاء]],0) -> 25 | G18: 2018-03-01 | H18: 2017-09-05 | I18: 6 | J18: =Table13[[#This Row],[الإجمالي]]-Table13[[#This Row],[المدفوع2]] -> 13000 | K18: 13500 | L18: =Table13[[#This Row],[ ألأيجار]]+Table13[[#This Row],[ماء]] -> 26500 | M18: 500 | N18: 26000 | O18: 205 | P18: سالم توفيق علي الخالدي | Q18: 13
A19: B | B19: 1000 | D19: =IF(Table13[[#This Row],[ تاريخ الانتهاء]]<$B$4,$B$4-Table13[[#This Row],[ تاريخ الانتهاء]],0) -> 0 | G19: 2018-08-22 | H19: 2018-02-27 | I19: 6 | J19: =Table13[[#This Row],[الإجمالي]]-Table13[[#This Row],[المدفوع2]] -> 16000 | K19: 16500 | L19: =Table13[[#This Row],[ ألأيجار]]+Table13[[#This Row],[ماء]] -> 32500 | M19: 500 | N19: 32000 | O19: 206 | P19: ريتشارد فينبلس | Q19: 14
A20: B | B20: 1000 | D20: =IF(Table13[[#This Row],[ تاريخ الانتهاء]]<$B$4,$B$4-Table13[[#This Row],[ تاريخ الانتهاء]],0) -> 0 | G20: 2018-06-30 | H20: 2018-01-03 | I20: 6 | J20: =Table13[[#This Row],[الإجمالي]]-Table13[[#This Row],[المدفوع2]] -> 16000 | K20: 16500 | L20: =Table13[[#This Row],[ ألأيجار]]+Table13[[#This Row],[ماء]] -> 32500 | M20: 500 | N20: 32000 | O20: 207 | P20: أحمد صلاح حسن سر حان | Q20: 15
A21: A | B21: بدون | D21: =IF(Table13[[#This Row],[ تاريخ الانتهاء]]<$B$4,$B$4-Table13[[#This Row],[ تاريخ الانتهاء]],0) -> 25 | G21: 2018-03-01 | I21: 6 | J21: =Table13[[#This Row],[الإجمالي]]-Table13[[#This Row],[المدفوع2]] -> 15100 | K21: 11400 | L21: =Table13[[#This Row],[ ألأيجار]]+Table13[[#This Row],[ماء]] -> 26500 | M21: 500 | N21: 26000 | O21: 208 | P21: اريك فرجر | Q21: 16
A22: B | B22: 1000 | D22: =IF(Table13[[#This Row],[ تاريخ الانتهاء]]<$B$4,$B$4-Table13[[#This Row],[ تاريخ الانتهاء]],0) -> 0 | G22: 2018-06-20 | H22: 2017-12-25 | I22: 6 | J22: =Table13[[#This Row],[الإجمالي]]-Table13[[#This Row],[المدفوع2]] -> 13000 | K22: 13500 | L22: =Table13[[#This Row],[ ألأيجار]]+Table13[[#This Row],[ماء]] -> 26500 | M22: 500 | N22: 26000 | O22: 301 | P22: نقولا اسكندر شويري | Q22: 17
A23: B | B23: 1000 | D23: =IF(Table13[[#This Row],[ تاريخ الانتهاء]]<$B$4,$B$4-Table13[[#This Row],[ تاريخ الانتهاء]],0) -> 0 | G23: 2018-08-20 | H23: 2017-09-01 | I23: 6 | J23: =Table13[[#This Row],[الإجمالي]]-Table13[[#This Row],[المدفوع2]] -> 16000 | K23: 16500 | L23: =Table13[[#This Row],[ ألأيجار]]+Table13[[#This Row],[ماء]] -> 32500 | M23: 500 | N23: 32000 | O23: 302 | P23: وليد حمدى حامد عبدالغفار | Q23: 18
A24: A | B24: 1000 | D24: =IF(Table13[[#This Row],[ تاريخ الانتهاء]]<$B$4,$B$4-Table13[[#This Row],[ تاريخ الانتهاء]],0) -> 7 | G24: 2018-03-19 | H24: 2017-09-23 | I24: 6 | J24: =Table13[[#This Row],[الإجمالي]]-Table13[[#This Row],[المدفوع2]] -> 16000 | K24: 16500 | L24: =Table13[[#This Row],[ ألأيجار]]+Table13[[#This Row],[ماء]] -> 32500 | M24: 500 | N24: 32000 | O24: 303 | P24: عمر ابراهيم عبدالرحمن الجلال | Q24: 19
A25: B | B25: 1000 | D25: =IF(Table13[[#This Row],[ تاريخ الانتهاء]]<$B$4,$B$4-Table13[[#This Row],[ تاريخ الانتهاء]],0) -> 0 | G25: 2018-03-27 | H25: 2017-10-01 | I25: 6 | J25: =Table13[[#This Row],[الإجمالي]]-Table13[[#This Row],[المدفوع2]] -> 13000 | K25: 13500 | L25: =Table13[[#This Row],[ ألأيجار]]+Table13[[#This Row],[ماء]] -> 26500 | M25: 500 | N25: 26000 | O25: 304 | P25: محمد عباس كندي | Q25: 20
A26: c | D26: =IF(Table13[[#This Row],[ تاريخ الانتهاء]]<$B$4,$B$4-Table13[[#This Row],[ تاريخ الانتهاء]],0) -> 43185 | J26: =Table13[[#This Row],[الإجمالي]]-Table13[[#This Row],[المدفوع2]] -> 0 | K26: =(Table13[[#This Row],[الإجمالي]]/$Q$3)*Table13[[#This Row],[ طريقة الدفع]] -> 0 | L26: =Table13[[#This Row],[ ألأيجار]]+Table13[[#This Row],[ماء]] -> 0 | O26: 305 | P26: فاضي | Q26: 21
A27: B | B27: 1000 | D27: =IF(Table13[[#This Row],[ تاريخ الانتهاء]]<$B$4,$B$4-Table13[[#This Row],[ تاريخ الانتهاء]],0) -> 0 | G27: 2018-03-27 | H27: 2017-10-01 | I27: 6 | J27: =Table13[[#This Row],[الإجمالي]]-Table13[[#This Row],[المدفوع2]] -> 16000 | K27: 16500 | L27: =Table13[[#This Row],[ ألأيجار]]+Table13[[#This Row],[ماء]] -> 32500 | M27: 500 | N27: 32000 | O27: 306 | P27: حمد علي صالح حمزة | Q27: 22
A28: c | D28: =IF(Table13[[#This Row],[ تاريخ الانتهاء]]<$B$4,$B$4-Table13[[#This Row],[ تاريخ الانتهاء]],0) -> 43185 | I28: 6 | J28: =Table13[[#This Row],[الإجمالي]]-Table13[[#This Row],[المدفوع2]] -> 16000 | K28: 16500 | L28: =Table13[[#This Row],[ ألأيجار]]+Table13[[#This Row],[ماء]] -> 32500 | M28: 500 | N28: 32000 | O28: 307 | P28: فاضي | Q28: 23
A29: B | B29: 1000 | D29: =IF(Table13[[#This Row],[ تاريخ الانتهاء]]<$B$4,$B$4-Table13[[#This Row],[ تاريخ الانتهاء]],0) -> 0 | G29: 2018-07-14 | H29: 2018-01-17 | I29: 6 | J29: =Table13[[#This Row],[الإجمالي]]-Table13[[#This Row],[المدفوع2]] -> 13000 | K29: 13500 | L29: =Table13[[#This Row],[ ألأيجار]]+Table13[[#This Row],[ماء]] -> 26500 | M29: 500 | N29: 26000 | O29: 308 | P29: محمد عبد اموجود عبد اغفار العفناوى | Q29: 24
A30: B | B30: 1000 | D30: =IF(Table13[[#This Row],[ تاريخ الانتهاء]]<$B$4,$B$4-Table13[[#This Row],[ تاريخ الانتهاء]],0) -> 0 | G30: 2018-04-25 | H30: 2017-10-30 | I30: 6 | J30: =Table13[[#This Row],[الإجمالي]]-Table13[[#This Row],[المدفوع2]] -> 13500 | K30: 14000 | L30: =Table13[[#This Row],[ ألأيجار]]+Table13[[#This Row],[ماء]] -> 27500 | M30: 500 | N30: 27000 | O30: 401 | P30: بندر بن رافع بن عبدالله اللا حق القرني | Q30: 25
A31: B | B31: بدون | D31: =IF(Table13[[#This Row],[ تاريخ الانتهاء]]<$B$4,$B$4-Table13[[#This Row],[ تاريخ الانتهاء]],0) -> 0 | G31: 2018-08-06 | H31: 2017-08-06 | I31: 6 | J31: =Table13[[#This Row],[الإجمالي]]-Table13[[#This Row],[المدفوع2]] -> 500 | K31: 32000 | L31: =Table13[[#This Row],[ ألأيجار]]+Table13[[#This Row],[ماء]] -> 32500 | M31: 500 | N31: 32000 | O31: 402 | P31: محمد محمود الحاج | Q31: 26
A32: B | B32: 1000 | D32: =IF(Table13[[#This Row],[ تاريخ الانتهاء]]<$B$4,$B$4-Table13[[#This Row],[ تاريخ الانتهاء]],0) -> 0 | G32: 2018-07-28 | H32: 2018-02-01 | I32: 6 | J32: =Table13[[#This Row],[الإجمالي]]-Table13[[#This Row],[المدفوع2]] -> 13000 | K32: 13500 | L32: =Table13[[#This Row],[ ألأيجار]]+Table13[[#This Row],[ماء]] -> 26500 | M32: 500 | N32: 26000 | O32: 403 | P32: خالد الطاهر قاسمي | Q32: 27
A33: B | B33: 1000 | D33: =IF(Table13[[#This Row],[ تاريخ الانتهاء]]<$B$4,$B$4-Table13[[#This Row],[ تاريخ الانتهاء]],0) -> 0 | G33: 2018-05-15 | H33: 2017-11-19 | I33: 6 | J33: =Table13[[#This Row],[الإجمالي]]-Table13[[#This Row],[المدفوع2]] -> 13000 | K33: 13500 | L33: =Table13[[#This Row],[ ألأيجار]]+Table13[[#This Row],[ماء]] -> 26500 | M33: 500 | N33: 26000 | O33: 404 | P33: يوسف نقولا متري | Q33: 28
A34: B | B34: 1000 | D34: =IF(Table13[[#This Row],[ تاريخ الانتهاء]]<$B$4,$B$4-Table13[[#This Row],[ تاريخ الانتهاء]],0) -> 0 | G34: 2018-08-24 | H34: 2018-03-01 | I34: 6 | J34: =Table13[[#This Row],[الإجمالي]]-Table13[[#This Row],[المدفوع2]] -> 16000 | K34: 16500 | L34: =Table13[[#This Row],[ ألأيجار]]+Table13[[#This Row],[ماء]] -> 32500 | M34: 500 | N34: 32000 | O34: 405 | P34: عمر فتح المعالج | Q34: 29
A35: B | B35: 1000 | D35: =IF(Table13[[#This Row],[ تاريخ الانتهاء]]<$B$4,$B$4-Table13[[#This Row],[ تاريخ الانتهاء]],0) -> 0 | G35: 2018-07-21 | H35: 2018-01-25 | I35: 6 | J35: =Table13[[#This Row],[الإجمالي]]-Table13[[#This Row],[المدفوع2]] -> 14000 | K35: 14500 | L35: =Table13[[#This Row],[ ألأيجار]]+Table13[[#This Row],[ماء]] -> 28500 | M35: 500 | N35: 28000 | O35: 406 | P35: معجب بن محمد القحطاني | Q35: 30
K36: =SUBTOTAL(109,Table13[المدفوع2]) -> 447900 | L36: =SUBTOTAL(109,Table13[الإجمالي]) -> 855500 | M36: =SUBTOTAL(109,Table13[ماء]) -> 14500 | N36: =SUBTOTAL(109,Table13[[ ألأيجار]]) -> 841000

Sheet البايونيه
A3: A | B3: =TODAY() -> 2018-03-26 | C3: تاريخ الهجري | P3: الشقق الفارغه | Q3: 12
A4: A | B4: =TODAY() -> 2018-03-26 | C4: الموافق | F4: 3 | J4: جوال= | P4: المحلات الفارغه
A5: =IF(D5>0,"A","B") -> A | B5: تأمين | C5: رقم الجوال | D5: عدد أيام تأخير | E5: ملاحظات | F5: المدفوع | G5: تاريخ الانتهاء | H5: تاريخ ابتداءالايجار | I5: طريقة الدفع | J5: الباقي | K5: المطلوب | L5: الإجمالي | M5: ماء | N5: ألأيجار | O5: رقم الشقة | P5: اسم المستأجر | Q5: الرقم
A6: =IF(D6<1000,IF(D6>0,"A","B"),"c") -> B | B6: بدون تأمين | D6: =IF(Table134[[#This Row],[ تاريخ الانتهاء]]<$B$4,$B$4-Table134[[#This Row],[ تاريخ الانتهاء]],0) -> 0 | G6: 2018-08-20 | H6: 2017-09-01 | I6: 12 | J6: =Table134[[#This Row],[الإجمالي]]-Table134[[#This Row],[المطلوب]] -> 0 | K6: =(Table134[[#This Row],[الإجمالي]]/$Q$3)*Table134[[#This Row],[ طريقة الدفع]] -> 10600 | L6: =Table134[[#This Row],[ ألأيجار]]+Table134[[#This Row],[ماء]] -> 10600 | M6: 600 | N6: 10000 | O6: 1 | P6: ملوين و التر داليما | Q6: 1
A7: =IF(D7<1000,IF(D7>0,"A","B"),"c") -> B | B7: بدون تأمين | D7: =IF(Table134[[#This Row],[ تاريخ الانتهاء]]<$B$4,$B$4-Table134[[#This Row],[ تاريخ الانتهاء]],0) -> 0 | G7: 2018-10-19 | H7: 2017-10-30 | I7: 12 | J7: =Table134[[#This Row],[الإجمالي]]-Table134[[#This Row],[المطلوب]] -> 0 | K7: =(Table134[[#This Row],[الإجمالي]]/$Q$3)*Table134[[#This Row],[ طريقة الدفع]] -> 10600 | L7: =Table134[[#This Row],[ ألأيجار]]+Table134[[#This Row],[ماء]] -> 10600 | M7: 600 | N7: 10000 | O7: 2 | P7: سيد محمد بانا | Q7: =Q6+1 -> 2
A8: B | B8: بدون تأمين | D8: =IF(Table134[[#This Row],[ تاريخ الانتهاء]]<$B$4,$B$4-Table134[[#This Row],[ تاريخ الانتهاء]],0) -> 0 | G8: 2018-05-14 | I8: 6 | J8: =Table134[[#This Row],[الإجمالي]]-Table134[[#This Row],[المطلوب]] -> 6300 | K8: =(Table134[[#This Row],[الإجمالي]]/$Q$3)*Table134[[#This Row],[ طريقة الدفع]] -> 6300 | L8: =Table134[[#This Row],[ ألأيجار]]+Table134[[#This Row],[ماء]] -> 12600 | M8: 600 | N8: 12000 | O8: 3 | P8: مانوج تايبارامبو سيفاداس | Q8: =Q7+1 -> 3
A9: B | B9: بدون تأمين | D9: =IF(Table134[[#This Row],[ تاريخ الانتهاء]]<$B$4,$B$4-Table134[[#This Row],[ تاريخ الانتهاء]],0) -> 0 | G9: 2018-05-15 | H9: 2017-09-21 | I9: =246.769811320755/30 -> 8.225660377 | J9: =Table134[[#This Row],[الإجمالي]]-Table134[[#This Row],[المطلوب]] -> 3334 | K9: =(Table134[[#This Row],[الإجمالي]]/$Q$3)*Table134[[#This Row],[ طريقة الدفع]] -> 7266 | L9: =Table134[[#This Row],[ ألأيجار]]+Table134[[#This Row],[ماء]] -> 10600 | M9: 600 | N9: 10000 | O9: 4 | P9: مجاهد علي محمد | Q9: 4
A10: A | B10: بدون تأمين | D10: =IF(Table134[[#This Row],[ تاريخ الانتهاء]]<$B$4,$B$4-Table134[[#This Row],[ تاريخ الانتهاء]],0) -> 265 | G10: 2017-07-04 | I10: 12 | J10: =Table134[[#This Row],[الإجمالي]]-Table134[[#This Row],[المطلوب]] -> 0 | K10: =(Table134[[#This Row],[الإجمالي]]/$Q$3)*Table134[[#This Row],[ طريقة الدفع]] -> 13200 | L10: =Table134[[#This Row],[ ألأيجار]]+Table134[[#This Row],[ماء]] -> 13200 | M10: 200 | N10: 13000 | O10: 5 | P10: صديق مباكران | Q10: 5
A11: B | B11: بدون تأمين | D11: =IF(Table134[[#This Row],[ تاريخ الانتهاء]]<$B$4,$B$4-Table134[[#This Row],[ تاريخ الانتهاء]],0) -> 0 | G11: 2018-05-10 | H11: 2017-11-14 | I11: 6 | J11: =Table134[[#This Row],[الإجمالي]]-Table134[[#This Row],[المطلوب]] -> 6300 | K11: =(Table134[[#This Row],[الإجمالي]]/$Q$3)*Table134[[#This Row],[ طريقة الدفع]] -> 6300 | L11: =Table134[[#This Row],[ ألأيجار]]+Table134[[#This Row],[ماء]] -> 12600 | M11: 600 | N11: 12000 | O11: 6 | P11: داس ناريان ناير | Q11: 6
A12: B | B12: بدون تأمين | D12: =IF(Table134[[#This Row],[ تاريخ الانتهاء]]<$B$4,$B$4-Table134[[#This Row],[ تاريخ الانتهاء]],0) -> 0 | G12: 2018-04-24 | H12: 2017-10-29 | I12: 6 | J12: =Table134[[#This Row],[الإجمالي]]-Table134[[#This Row],[المطلوب]] -> 5300 | K12: =(Table134[[#This Row],[الإجمالي]]/$Q$3)*Table134[[#This Row],[ طريقة الدفع]] -> 5300 | L12: =Table134[[#This Row],[ ألأيجار]]+Table134[[#This Row],[ماء]] -> 10600 | M12: 600 | N12: 10000 | O12: 7 | P12: عبدالودود محمد علي | Q12: 7
A13: B | B13: بدون تأمين | D13: =IF(Table134[[#This Row],[ تاريخ الانتهاء]]<$B$4,$B$4-Table134[[#This Row],[ تاريخ الانتهاء]],0) -> 0 | G13: 2018-07-22 | H13: 2018-01-26 | I13: 6 | J13: =Table134[[#This Row],[الإجمالي]]-Table134[[#This Row],[المطلوب]] -> 6300 | K13: =(Table134[[#This Row],[الإجمالي]]/$Q$3)*Table134[[#This Row],[ طريقة الدفع]] -> 6300 | L13: =Table134[[#This Row],[ ألأيجار]]+Table134[[#This Row],[ماء]] -> 12600 | M13: 600 | N13: 12000 | O13: 8 | P13: عبدالقادر حسن باقيس | Q13: 8
A14: c | D14: =IF(Table134[[#This Row],[ تاريخ الانتهاء]]<$B$4,$B$4-Table134[[#This Row],[ تاريخ الانتهاء]],0) -> 43185 | J14: =Table134[[#This Row],[الإجمالي]]-Table134[[#This Row],[المطلوب]] -> 0 | K14: =(Table134[[#This Row],[الإجمالي]]/$Q$3)*Table134[[#This Row],[ طريقة الدفع]] -> 0 | L14: =Table134[[#This Row],[ ألأيجار]]+Table134[[#This Row],[ماء]] -> 0 | O14: M1 | P14: فاضي | Q14: 9
A15: c | D15: =IF(Table134[[#This Row],[ تاريخ الانتهاء]]<$B$4,$B$4-Table134[[#This Row],[ تاريخ الانتهاء]],0) -> 43185 | J15: =Table134[[#This Row],[الإجمالي]]-Table134[[#This Row],[المطلوب]] -> 0 | K15: =(Table134[[#This Row],[الإجمالي]]/$Q$3)*Table134[[#This Row],[ طريقة الدفع]] -> 0 | L15: =Table134[[#This Row],[ ألأيجار]]+Table134[[#This Row],[ماء]] -> 0 | O15: M2 | P15: فاضي | Q15: 10
A16: B | B16: بدون تأمين | D16: =IF(Table134[[#This Row],[ تاريخ الانتهاء]]<$B$4,$B$4-Table134[[#This Row],[ تاريخ الانتهاء]],0) -> 0 | G16: 2018-09-01 | H16: 2017-09-01 | I16: 6 | J16: =Table134[[#This Row],[الإجمالي]]-Table134[[#This Row],[المطلوب]] -> 78000 | K16: =(Table134[[#This Row],[الإجمالي]]/$Q$3)*Table134[[#This Row],[ طريقة الدفع]] -> 78000 | L16: =Table134[[#This Row],[ ألأيجار]]+Table134[[#This Row],[ماء]] -> 156000 | N16: 156000 | O16: الثقبه | P16: شركة سارة المتحدة(يحيي السخاوي) | Q16: 11
A17: B | K17: =SUBTOTAL(109,Table134[المطلوب]) -> 143866 | L17: =SUBTOTAL(109,Table134[الإجمالي]) -> 249400 | M17: =SUBTOTAL(109,Table134[ماء]) -> 4400 | N17: =SUBTOTAL(109,Table134[[ ألأيجار]]) -> 245000
A18: B
A19: B
A20: B
A21: B
A22: B
A23: B
A24: B
A25: B
A26: B
A27: B
A28: B
A29: B
A30: B
A31: B
A32: B
A33: B
A34: B
A35: B

Sheet الراكه
A3: A | B3: =TODAY() -> 2018-03-26 | C3: تاريخ الهجري | P3: الشقق الفارغه | Q3: 12
A4: A | B4: =TODAY() -> 2018-03-26 | C4: الموافق | F4: 3 | J4: جوال= | P4: المحلات الفارغه
A5: =IF(D5>0,"A","B") -> A | B5: تأمين | C5: رقم الجوال | D5: عدد أيام تأخير | E5: ملاحظات | F5: المدفوع | G5: تاريخ الانتهاء | H5: تاريخ ابتداءالايجار | I5: طريقة الدفع | J5: الباقي | K5: المطلوب | L5: الإجمالي | M5: ماء | N5: ألأيجار | O5: رقم الشقة | P5: اسم المستأجر | Q5: الرقم
A6: =IF(D6<1000,IF(D6>0,"A","B"),"c") -> A | D6: =IF(Table13412[[#This Row],[ تاريخ الانتهاء]]<$B$4,$B$4-Table13412[[#This Row],[ تاريخ الانتهاء]],0) -> 25 | G6: 2018-03-01 | I6: 12 | J6: =Table13412[[#This Row],[الإجمالي]]-Table13412[[#This Row],[المطلوب]] -> 0 | K6: =(Table13412[[#This Row],[الإجمالي]]/$Q$3)*Table13412[[#This Row],[ طريقة الدفع]] -> 22600 | L6: =Table13412[[#This Row],[ ألأيجار]]+Table13412[[#This Row],[ماء]] -> 22600 | M6: 600 | N6: 22000 | O6: 1 | P6: إبراهيم المهنا | Q6: 1
A7: =IF(D7<1000,IF(D7>0,"A","B"),"c") -> B | D7: =IF(Table13412[[#This Row],[ تاريخ الانتهاء]]<$B$4,$B$4-Table13412[[#This Row],[ تاريخ الانتهاء]],0) -> 0 | G7: 2018-05-24 | I7: 6 | J7: =Table13412[[#This Row],[الإجمالي]]-Table13412[[#This Row],[المطلوب]] -> 10300 | K7: =(Table13412[[#This Row],[الإجمالي]]/$Q$3)*Table13412[[#This Row],[ طريقة الدفع]] -> 10300 | L7: =Table13412[[#This Row],[ ألأيجار]]+Table13412[[#This Row],[ماء]] -> 20600 | M7: 600 | N7: 20000 | O7: 2 | P7: محمد | Q7: =Q6+1 -> 2
A8: B | D8: =IF(Table13412[[#This Row],[ تاريخ الانتهاء]]<$B$4,$B$4-Table13412[[#This Row],[ تاريخ الانتهاء]],0) -> 0 | G8: 2018-06-17 | I8: 6 | J8: =Table13412[[#This Row],[الإجمالي]]-Table13412[[#This Row],[المطلوب]] -> 10000 | K8: =(Table13412[[#This Row],[الإجمالي]]/$Q$3)*Table13412[[#This Row],[ طريقة الدفع]] -> 10000 | L8: =Table13412[[#This Row],[ ألأيجار]]+Table13412[[#This Row],[ماء]] -> 20000 | N8: 20000 | O8: 3 | P8: مازن وهيب حمزه | Q8: =Q7+1 -> 3
A9: A | D9: =IF(Table13412[[#This Row],[ تاريخ الانتهاء]]<$B$4,$B$4-Table13412[[#This Row],[ تاريخ الانتهاء]],0) -> 68 | G9: 2018-01-17 | I9: 12 | J9: =Table13412[[#This Row],[الإجمالي]]-Table13412[[#This Row],[المطلوب]] -> 0 | K9: =(Table13412[[#This Row],[الإجمالي]]/$Q$3)*Table13412[[#This Row],[ طريقة الدفع]] -> 23300 | L9: =Table13412[[#This Row],[ ألأيجار]]+Table13412[[#This Row],[ماء]] -> 23300 | M9: 300 | N9: 23000 | O9: 4 | P9: ناصر مروان حمود | Q9: 4
A10: B | B10: 1000 | D10: =IF(Table13412[[#This Row],[ تاريخ الانتهاء]]<$B$4,$B$4-Table13412[[#This Row],[ تاريخ الانتهاء]],0) -> 0 | G10: 2018-04-25 | I10: 6 | J10: =Table13412[[#This Row],[الإجمالي]]-Table13412[[#This Row],[المطلوب]] -> 10300 | K10: =(Table13412[[#This Row],[الإجمالي]]/$Q$3)*Table13412[[#This Row],[ طريقة الدفع]] -> 10300 | L10: =Table13412[[#This Row],[ ألأيجار]]+Table13412[[#This Row],[ماء]] -> 20600 | M10: 600 | N10: 20000 | O10: 5 | P10: ارشاد علي محمد عثمان | Q10: 5
A11: A | D11: =IF(Table13412[[#This Row],[ تاريخ الانتهاء]]<$B$4,$B$4-Table13412[[#This Row],[ تاريخ الانتهاء]],0) -> 9 | G11: 2018-03-17 | I11: 6 | J11: =Table13412[[#This Row],[الإجمالي]]-Table13412[[#This Row],[المطلوب]] -> 10300 | K11: =(Table13412[[#This Row],[الإجمالي]]/$Q$3)*Table13412[[#This Row],[ طريقة الدفع]] -> 10300 | L11: =Table13412[[#This Row],[ ألأيجار]]+Table13412[[#This Row],[ماء]] -> 20600 | M11: 600 | N11: 20000 | O11: 6 | P11: رانجيت ناير | Q11: 6
A12: B | D12: =IF(Table13412[[#This Row],[ تاريخ الانتهاء]]<$B$4,$B$4-Table13412[[#This Row],[ تاريخ الانتهاء]],0) -> 0 | G12: 2018-08-11 | I12: 6 | J12: =Table13412[[#This Row],[الإجمالي]]-Table13412[[#This Row],[المطلوب]] -> 10300 | K12: =(Table13412[[#This Row],[الإجمالي]]/$Q$3)*Table13412[[#This Row],[ طريقة الدفع]] -> 10300 | L12: =Table13412[[#This Row],[ ألأيجار]]+Table13412[[#This Row],[ماء]] -> 20600 | M12: 600 | N12: 20000 | O12: 7 | P12: نزار مهدى خان | Q12: 7
A13: B | B13: 1000 | D13: =IF(Table13412[[#This Row],[ تاريخ الانتهاء]]<$B$4,$B$4-Table13412[[#This Row],[ تاريخ الانتهاء]],0) -> 0 | G13: 2018-03-28 | I13: 6 | J13: =Table13412[[#This Row],[الإجمالي]]-Table13412[[#This Row],[المطلوب]] -> 10300 | K13: =(Table13412[[#This Row],[الإجمالي]]/$Q$3)*Table13412[[#This Row],[ طريقة الدفع]] -> 10300 | L13: =Table13412[[#This Row],[ ألأيجار]]+Table13412[[#This Row],[ماء]] -> 20600 | M13: 600 | N13: 20000 | O13: 8 | P13: اوفايل كاروناي فاروق | Q13: 8
A14: B | D14: =IF(Table13412[[#This Row],[ تاريخ الانتهاء]]<$B$4,$B$4-Table13412[[#This Row],[ تاريخ الانتهاء]],0) -> 0 | G14: 2018-04-28 | I14: 6 | J14: =Table13412[[#This Row],[الإجمالي]]-Table13412[[#This Row],[المطلوب]] -> 5250 | K14: =(Table13412[[#This Row],[الإجمالي]]/$Q$3)*Table13412[[#This Row],[ طريقة الدفع]] -> 5250 | L14: =Table13412[[#This Row],[ ألأيجار]]+Table13412[[#This Row],[ماء]] -> 10500 | M14: 500 | N14: 10000 | O14: 9 | P14: محمد قاسم شيخ علي | Q14: 9
A15: c | D15: =IF(Table13412[[#This Row],[ تاريخ الانتهاء]]<$B$4,$B$4-Table13412[[#This Row],[ تاريخ الانتهاء]],0) -> 43185 | J15: =Table13412[[#This Row],[الإجمالي]]-Table13412[[#This Row],[المطلوب]] -> 0 | K15: =(Table13412[[#This Row],[الإجمالي]]/$Q$3)*Table13412[[#This Row],[ طريقة الدفع]] -> 0 | L15: =Table13412[[#This Row],[ ألأيجار]]+Table13412[[#This Row],[ماء]] -> 0 | Q15: 10
A16: c | D16: =IF(Table13412[[#This Row],[ تاريخ الانتهاء]]<$B$4,$B$4-Table13412[[#This Row],[ تاريخ الانتهاء]],0) -> 43185 | J16: =Table13412[[#This Row],[الإجمالي]]-Table13412[[#This Row],[المطلوب]] -> 0 | K16: =(Table13412[[#This Row],[الإجمالي]]/$Q$3)*Table13412[[#This Row],[ طريقة الدفع]] -> 0 | L16: =Table13412[[#This Row],[ ألأيجار]]+Table13412[[#This Row],[ماء]] -> 0 | Q16: 11
A17: B | K17: =SUBTOTAL(109,Table13412[المطلوب]) -> 112650 | L17: =SUBTOTAL(109,Table13412[الإجمالي]) -> 179400 | M17: =SUBTOTAL(109,Table13412[ماء]) -> 4400 | N17: =SUBTOTAL(109,Table13412[[ ألأيجار]]) -> 175000
A18: B
A19: B
A20: B
A21: B
A22: B
A23: B
A24: B
A25: B
A26: B
A27: B
A28: B
A29: B
A30: B
A31: B
A32: B
A33: B
A34: B
A35: B

Sheet سعد
A3: A | B3: =TODAY() -> 2018-03-26 | C3: تاريخ الهجري | P3: الشقق الفارغه | Q3: 12
A4: A | B4: =TODAY() -> 2018-03-26 | C4: الموافق | F4: 5 | J4: جوال= | P4: المحلات الفارغه
A5: =IF(D5>0,"A","B") -> A | B5: تأمين | C5: رقم الجوال | D5: عدد أيام تأخير | E5: ملاحظات | F5: المطلوب دفعه | G5: تاريخ الانتهاء | H5: ايجار يومي | I5: طريقة الدفع | J5: الباقي | K5: المطلوب | L5: الإجمالي | M5: ماء | N5: ألأيجار | O5: رقم الشقة | P5: اسم المستأجر | Q5: الرقم
A6: =IF(D6<1000,IF(D6>0,"A","B"),"c") -> B | B6: 500 | D6: =IF(Table1348910[[#This Row],[ تاريخ الانتهاء]]<$B$4,$B$4-Table1348910[[#This Row],[ تاريخ الانتهاء]],0) -> 0 | F6: =IF(Table1348910[[#This Row],[عدد أيام تأخير]]>0,Table1348910[[#This Row],[عدد أيام تأخير]]*Table1348910[[#This Row],[ايجار يومي]],0) -> 0 | G6: 2018-04-01 | H6: =Table1348910[[#This Row],[ الباقي]]/360 -> 28.61111111 | J6: =Table1348910[[#This Row],[الإجمالي]]-Table1348910[[#This Row],[المطلوب]] -> 10300 | K6: =(Table1348910[[#This Row],[الإجمالي]]/$Q$3)*Table1348910[[#This Row],[ طريقة الدفع]] -> 0 | L6: =Table1348910[[#This Row],[ ألأيجار]]+Table1348910[[#This Row],[ماء]] -> 10300 | M6: 300 | N6: 10000 | O6: 101 | P6: مارتيس سيلفان دانيل | Q6: 1
A7: =IF(D7<1000,IF(D7>0,"A","B"),"c") -> A | D7: =IF(Table1348910[[#This Row],[ تاريخ الانتهاء]]<$B$4,$B$4-Table1348910[[#This Row],[ تاريخ الانتهاء]],0) -> 15 | F7: =IF(Table1348910[[#This Row],[عدد أيام تأخير]]>0,Table1348910[[#This Row],[عدد أيام تأخير]]*Table1348910[[#This Row],[ايجار يومي]],0) -> 0 | G7: 2018-03-11 | H7: =Table1348910[[#This Row],[ الباقي]]/360 -> 0 | I7: 12 | J7: =Table1348910[[#This Row],[الإجمالي]]-Table1348910[[#This Row],[المطلوب]] -> 0 | K7: =(Table1348910[[#This Row],[الإجمالي]]/$Q$3)*Table1348910[[#This Row],[ طريقة الدفع]] -> 17000 | L7: =Table1348910[[#This Row],[ ألأيجار]]+Table1348910[[#This Row],[ماء]] -> 17000 | N7: 17000 | O7: 102 | P7: احمد عبد الرحيم | Q7: =Q6+1 -> 2
A8: B | B8: 1000 | D8: =IF(Table1348910[[#This Row],[ تاريخ الانتهاء]]<$B$4,$B$4-Table1348910[[#This Row],[ تاريخ الانتهاء]],0) -> 0 | F8: =IF(Table1348910[[#This Row],[عدد أيام تأخير]]>0,Table1348910[[#This Row],[عدد أيام تأخير]]*Table1348910[[#This Row],[ايجار يومي]],0) -> 0 | G8: 2018-06-01 | H8: =Table1348910[[#This Row],[ الباقي]]/360 -> 40.625 | I8: 3 | J8: =Table1348910[[#This Row],[الإجمالي]]-Table1348910[[#This Row],[المطلوب]] -> 14625 | K8: =(Table1348910[[#This Row],[الإجمالي]]/$Q$3)*Table1348910[[#This Row],[ طريقة الدفع]] -> 4875 | L8: =Table1348910[[#This Row],[ ألأيجار]]+Table1348910[[#This Row],[ماء]] -> 19500 | N8: 19500 | O8: 103 | P8: المريت ديلا نافاريت | Q8: =Q7+1 -> 3
A9: A | B9: 1000 | D9: =IF(Table1348910[[#This Row],[ تاريخ الانتهاء]]<$B$4,$B$4-Table1348910[[#This Row],[ تاريخ الانتهاء]],0) -> 46 | F9: =IF(Table1348910[[#This Row],[عدد أيام تأخير]]>0,Table1348910[[#This Row],[عدد أيام تأخير]]*Table1348910[[#This Row],[ايجار يومي]],0) -> 1341.666667 | G9: 2018-02-08 | H9: =Table1348910[[#This Row],[ الباقي]]/360 -> 29.16666667 | I9: 3 | J9: =Table1348910[[#This Row],[الإجمالي]]-Table1348910[[#This Row],[المطلوب]] -> 10500 | K9: =(Table1348910[[#This Row],[الإجمالي]]/$Q$3)*Table1348910[[#This Row],[ طريقة الدفع]] -> 3500 | L9: =Table1348910[[#This Row],[ ألأيجار]]+Table1348910[[#This Row],[ماء]] -> 14000 | N9: 14000 | O9: 104 | P9: علي احمد محمد الدولاب | Q9: 4
A10: B | B10: 1000 | D10: =IF(Table1348910[[#This Row],[ تاريخ الانتهاء]]<$B$4,$B$4-Table1348910[[#This Row],[ تاريخ الانتهاء]],0) -> 0 | F10: =IF(Table1348910[[#This Row],[عدد أيام تأخير]]>0,Table1348910[[#This Row],[عدد أيام تأخير]]*Table1348910[[#This Row],[ايجار يومي]],0) -> 0 | G10: 2018-07-03 | H10: =Table1348910[[#This Row],[ الباقي]]/360 -> 14.23611111 | I10: 6 | J10: =Table1348910[[#This Row],[الإجمالي]]-Table1348910[[#This Row],[المطلوب]] -> 5125 | K10: =(Table1348910[[#This Row],[الإجمالي]]/$Q$3)*Table1348910[[#This Row],[ طريقة الدفع]] -> 5125 | L10: =Table1348910[[#This Row],[ ألأيجار]]+Table1348910[[#This Row],[ماء]] -> 10250 | M10: 250 | N10: 10000 | O10: 105 | P10: عبيداوي ابو لا كاندي | Q10: 5
A11: B | D11: =IF(Table1348910[[#This Row],[ تاريخ الانتهاء]]<$B$4,$B$4-Table1348910[[#This Row],[ تاريخ الانتهاء]],0) -> 0 | F11: =IF(Table1348910[[#This Row],[عدد أيام تأخير]]>0,Table1348910[[#This Row],[عدد أيام تأخير]]*Table1348910[[#This Row],[ايجار يومي]],0) -> 0 | G11: 2018-07-03 | H11: =Table1348910[[#This Row],[ الباقي]]/360 -> 21.18055556 | I11: 6 | J11: =Table1348910[[#This Row],[الإجمالي]]-Table1348910[[#This Row],[المطلوب]] -> 7625 | K11: =(Table1348910[[#This Row],[الإجمالي]]/$Q$3)*Table1348910[[#This Row],[ طريقة الدفع]] -> 7625 | L11: =Table1348910[[#This Row],[ ألأيجار]]+Table1348910[[#This Row],[ماء]] -> 15250 | M11: 250 | N11: 15000 | O11: 106 | P11: عبيداوي ابو لا كاندي | Q11: 6
A12: B | B12: 1000 | D12: =IF(Table1348910[[#This Row],[ تاريخ الانتهاء]]<$B$4,$B$4-Table1348910[[#This Row],[ تاريخ الانتهاء]],0) -> 0 | F12: =IF(Table1348910[[#This Row],[عدد أيام تأخير]]>0,Table1348910[[#This Row],[عدد أيام تأخير]]*Table1348910[[#This Row],[ايجار يومي]],0) -> 0 | G12: 2018-06-20 | H12: =Table1348910[[#This Row],[ الباقي]]/360 -> 23.95833333 | I12: 6 | J12: =Table1348910[[#This Row],[الإجمالي]]-Table1348910[[#This Row],[المطلوب]] -> 8625 | K12: =(Table1348910[[#This Row],[الإجمالي]]/$Q$3)*Table1348910[[#This Row],[ طريقة الدفع]] -> 8625 | L12: =Table1348910[[#This Row],[ ألأيجار]]+Table1348910[[#This Row],[ماء]] -> 17250 | M12: 250 | N12: 17000 | O12: 107 | P12: حسين صديق | Q12: 7
A13: B | D13: =IF(Table1348910[[#This Row],[ تاريخ الانتهاء]]<$B$4,$B$4-Table1348910[[#This Row],[ تاريخ الانتهاء]],0) -> 0 | F13: =IF(Table1348910[[#This Row],[عدد أيام تأخير]]>0,Table1348910[[#This Row],[عدد أيام تأخير]]*Table1348910[[#This Row],[ايجار يومي]],0) -> 0 | G13: 2018-06-20 | H13: =Table1348910[[#This Row],[ الباقي]]/360 -> 11.45833333 | I13: 6 | J13: =Table1348910[[#This Row],[الإجمالي]]-Table1348910[[#This Row],[المطلوب]] -> 4125 | K13: =(Table1348910[[#This Row],[الإجمالي]]/$Q$3)*Table1348910[[#This Row],[ طريقة الدفع]] -> 4125 | L13: =Table1348910[[#This Row],[ ألأيجار]]+Table1348910[[#This Row],[ماء]] -> 8250 | M13: 250 | N13: 8000 | O13: 108 | P13: حسين صديق | Q13: 8
A14: B | B14: 2000 | D14: =IF(Table1348910[[#This Row],[ تاريخ الانتهاء]]<$B$4,$B$4-Table1348910[[#This Row],[ تاريخ الانتهاء]],0) -> 0 | F14: =IF(Table1348910[[#This Row],[عدد أيام تأخير]]>0,Table1348910[[#This Row],[عدد أيام تأخير]]*Table1348910[[#This Row],[ايجار يومي]],0) -> 0 | G14: 2019-01-15 | H14: =Table1348910[[#This Row],[ الباقي]]/360 -> 0 | I14: 12 | J14: =Table1348910[[#This Row],[الإجمالي]]-Table1348910[[#This Row],[المطلوب]] -> 0 | K14: =(Table1348910[[#This Row],[الإجمالي]]/$Q$3)*Table1348910[[#This Row],[ طريقة الدفع]] -> 36500 | L14: =Table1348910[[#This Row],[ ألأيجار]]+Table1348910[[#This Row],[ماء]] -> 36500 | M14: 500 | N14: 36000 | O14: 201 | P14: l b c express | Q14: 9
A15: B | D15: =IF(Table1348910[[#This Row],[ تاريخ الانتهاء]]<$B$4,$B$4-Table1348910[[#This Row],[ تاريخ الانتهاء]],0) -> 0 | F15: =IF(Table1348910[[#This Row],[عدد أيام تأخير]]>0,Table1348910[[#This Row],[عدد أيام تأخير]]*Table1348910[[#This Row],[ايجار يومي]],0) -> 0 | G15: 2019-01-15 | H15: =Table1348910[[#This Row],[ الباقي]]/360 -> 0 | J15: =Table1348910[[#This Row],[الإجمالي]]-Table1348910[[#This Row],[المطلوب]] -> 0 | K15: =(Table1348910[[#This Row],[الإجمالي]]/$Q$3)*Table1348910[[#This Row],[ طريقة الدفع]] -> 0 | L15: =Table1348910[[#This Row],[ ألأيجار]]+Table1348910[[#This Row],[ماء]] -> 0 | O15: 202 | P15: l b c express | Q15: 10
A16: c | D16: =IF(Table1348910[[#This Row],[ تاريخ الانتهاء]]<$B$4,$B$4-Table1348910[[#This Row],[ تاريخ الانتهاء]],0) -> 43185 | F16: =IF(Table1348910[[#This Row],[عدد أيام تأخير]]>0,Table1348910[[#This Row],[عدد أيام تأخير]]*Table1348910[[#This Row],[ايجار يومي]],0) -> 0 | H16: =Table1348910[[#This Row],[ الباقي]]/360 -> 0 | J16: =Table1348910[[#This Row],[الإجمالي]]-Table1348910[[#This Row],[المطلوب]] -> 0 | K16: =(Table1348910[[#This Row],[الإجمالي]]/$Q$3)*Table1348910[[#This Row],[ طريقة الدفع]] -> 0 | L16: =Table1348910[[#This Row],[ ألأيجار]]+Table1348910[[#This Row],[ماء]] -> 0 | O16: 203 | P16: فاضي | Q16: 11
A17: A | B17: 500 | D17: =IF(Table1348910[[#This Row],[ تاريخ الانتهاء]]<$B$4,$B$4-Table1348910[[#This Row],[ تاريخ الانتهاء]],0) -> 15 | F17: =IF(Table1348910[[#This Row],[عدد أيام تأخير]]>0,Table1348910[[#This Row],[عدد أيام تأخير]]*Table1348910[[#This Row],[ايجار يومي]],0) -> 318.75 | G17: 2018-03-11 | H17: =Table1348910[[#This Row],[ الباقي]]/360 -> 21.25 | I17: 3 | J17: =Table1348910[[#This Row],[الإجمالي]]-Table1348910[[#This Row],[المطلوب]] -> 7650 | K17: =(Table1348910[[#This Row],[الإجمالي]]/$Q$3)*Table1348910[[#This Row],[ طريقة الدفع]] -> 2550 | L17: =Table1348910[[#This Row],[ ألأيجار]]+Table1348910[[#This Row],[ماء]] -> 10200 | M17: 200 | N17: 10000 | O17: 204 | P17: جاريل ماني كادو استاسيو | Q17: 12
A18: B | B18: 500 | D18: =IF(Table1348910[[#This Row],[ تاريخ الانتهاء]]<$B$4,$B$4-Table1348910[[#This Row],[ تاريخ الانتهاء]],0) -> 0 | F18: =IF(Table1348910[[#This Row],[عدد أيام تأخير]]>0,Table1348910[[#This Row],[عدد أيام تأخير]]*Table1348910[[#This Row],[ايجار يومي]],0) -> 0 | G18: 2018-03-31 | H18: =Table1348910[[#This Row],[ الباقي]]/360 -> 19.07407407 | I18: 4 | J18: =Table1348910[[#This Row],[الإجمالي]]-Table1348910[[#This Row],[المطلوب]] -> 6866.666667 | K18: =(Table1348910[[#This Row],[الإجمالي]]/$Q$3)*Table1348910[[#This Row],[ طريقة الدفع]] -> 3433.333333 | L18: =Table1348910[[#This Row],[ ألأيجار]]+Table1348910[[#This Row],[ماء]] -> 10300 | M18: 300 | N18: 10000 | O18: 205 | P18: عبدالسلام كوتيكودين | Q18: 13
A19: c | D19: =IF(Table1348910[[#This Row],[ تاريخ الانتهاء]]<$B$4,$B$4-Table1348910[[#This Row],[ تاريخ الانتهاء]],0) -> 43185 | F19: =IF(Table1348910[[#This Row],[عدد أيام تأخير]]>0,Table1348910[[#This Row],[عدد أيام تأخير]]*Table1348910[[#This Row],[ايجار يومي]],0) -> 0 | H19: =Table1348910[[#This Row],[ الباقي]]/360 -> 0 | I19: 3 | J19: =Table1348910[[#This Row],[الإجمالي]]-Table1348910[[#This Row],[المطلوب]] -> 0 | K19: =(Table1348910[[#This Row],[الإجمالي]]/$Q$3)*Table1348910[[#This Row],[ طريقة الدفع]] -> 0 | L19: =Table1348910[[#This Row],[ ألأيجار]]+Table1348910[[#This Row],[ماء]] -> 0 | O19: 206 | P19: فاضي | Q19: 14
A20: A | D20: =IF(Table1348910[[#This Row],[ تاريخ الانتهاء]]<$B$4,$B$4-Table1348910[[#This Row],[ تاريخ الانتهاء]],0) -> 15 | F20: =IF(Table1348910[[#This Row],[عدد أيام تأخير]]>0,Table1348910[[#This Row],[عدد أيام تأخير]]*Table1348910[[#This Row],[ايجار يومي]],0) -> 0 | G20: 2018-03-11 | H20: =Table1348910[[#This Row],[ الباقي]]/360 -> 0 | I20: 12 | J20: =Table1348910[[#This Row],[الإجمالي]]-Table1348910[[#This Row],[المطلوب]] -> 0 | K20: =(Table1348910[[#This Row],[الإجمالي]]/$Q$3)*Table1348910[[#This Row],[ طريقة الدفع]] -> 17000 | L20: =Table1348910[[#This Row],[ ألأيجار]]+Table1348910[[#This Row],[ماء]] -> 17000 | M20: 0 | N20: 17000 | O20: 207 | P20: احمد عبد الرحيم | Q20: 15
A21: A | B21: 500 | D21: =IF(Table1348910[[#This Row],[ تاريخ الانتهاء]]<$B$4,$B$4-Table1348910[[#This Row],[ تاريخ الانتهاء]],0) -> 2 | F21: =IF(Table1348910[[#This Row],[عدد أيام تأخير]]>0,Table1348910[[#This Row],[عدد أيام تأخير]]*Table1348910[[#This Row],[ايجار يومي]],0) -> 42.91666667 | G21: 2018-03-24 | H21: =Table1348910[[#This Row],[ الباقي]]/360 -> 21.45833333 | I21: 3 | J21: =Table1348910[[#This Row],[الإجمالي]]-Table1348910[[#This Row],[المطلوب]] -> 7725 | K21: =(Table1348910[[#This Row],[الإجمالي]]/$Q$3)*Table1348910[[#This Row],[ طريقة الدفع]] -> 2575 | L21: =Table1348910[[#This Row],[ ألأيجار]]+Table1348910[[#This Row],[ماء]] -> 10300 | M21: 300 | N21: 10000 | O21: 208 | P21: حمزة صابر محمد صابر | Q21: 16
A22: c | D22: =IF(Table1348910[[#This Row],[ تاريخ الانتهاء]]<$B$4,$B$4-Table1348910[[#This Row],[ تاريخ الانتهاء]],0) -> 43185 | F22: =IF(Table1348910[[#This Row],[عدد أيام تأخير]]>0,Table1348910[[#This Row],[عدد أيام تأخير]]*Table1348910[[#This Row],[ايجار يومي]],0) -> 0 | H22: =Table1348910[[#This Row],[ الباقي]]/360 -> 0 | J22: =Table1348910[[#This Row],[الإجمالي]]-Table1348910[[#This Row],[المطلوب]] -> 0 | K22: =(Table1348910[[#This Row],[الإجمالي]]/$Q$3)*Table1348910[[#This Row],[ طريقة الدفع]] -> 0 | L22: =Table1348910[[#This Row],[ ألأيجار]]+Table1348910[[#This Row],[ماء]] -> 0 | M22: 0 | O22: 301 | P22: فاضي | Q22: 17
A23: A | D23: =IF(Table1348910[[#This Row],[ تاريخ الانتهاء]]<$B$4,$B$4-Table1348910[[#This Row],[ تاريخ الانتهاء]],0) -> 108 | F23: =IF(Table1348910[[#This Row],[عدد أيام تأخير]]>0,Table1348910[[#This Row],[عدد أيام تأخير]]*Table1348910[[#This Row],[ايجار يومي]],0) -> 2790 | G23: 2017-12-08 | H23: =Table1348910[[#This Row],[ الباقي]]/360 -> 25.83333333 | I23: 3 | J23: =Table1348910[[#This Row],[الإجمالي]]-Table1348910[[#This Row],[المطلوب]] -> 9300 | K23: 3000 | L23: =Table1348910[[#This Row],[ ألأيجار]]+Table1348910[[#This Row],[ماء]] -> 12300 | M23: 300 | N23: 12000 | O23: 302 | P23: راشد غفور | Q23: 18
A24: =IF(D25<1000,IF(D25>0,"A","B"),"c") -> B | K24: =SUBTOTAL(109,Table1348910[المطلوب]) -> 115933.3333 | L24: =SUBTOTAL(109,Table1348910[الإجمالي]) -> 208400 | M24: =SUBTOTAL(109,Table1348910[ماء]) -> 2900 | N24: =SUBTOTAL(109,Table1348910[[ ألأيجار]]) -> 205500
A25: =IF(D26<1000,IF(D26>0,"A","B"),"c") -> B
A26: =IF(D27<1000,IF(D27>0,"A","B"),"c") -> B
A27: =IF(D28<1000,IF(D28>0,"A","B"),"c") -> B

Sheet نايف
A3: A | B3: =TODAY() -> 2018-03-26 | C3: تاريخ الهجري | P3: الشقق الفارغه | Q3: 12
A4: A | B4: =TODAY() -> 2018-03-26 | C4: الموافق | F4: 6 | J4: جوال= | P4: المحلات الفارغه
A5: =IF(D5>0,"A","B") -> A | B5: تأمين | C5: رقم الجوال | D5: عدد أيام تأخير | E5: ملاحظات | F5: المطلوب دفعه | G5: تاريخ الانتهاء | H5: ايجار يومي | I5: طريقة الدفع | J5: الباقي | K5: المطلوب | L5: الإجمالي | M5: ماء | N5: ألأيجار | O5: رقم الشقة | P5: اسم المستأجر | Q5: الرقم
A6: =IF(D6<1000,IF(D6>0,"A","B"),"c") -> B | D6: =IF(Table13489[[#This Row],[ تاريخ الانتهاء]]<$B$4,$B$4-Table13489[[#This Row],[ تاريخ الانتهاء]],0) -> 0 | F6: =IF(Table13489[[#This Row],[عدد أيام تأخير]]>0,Table13489[[#This Row],[عدد أيام تأخير]]*Table13489[[#This Row],[ايجار يومي]],0) -> 0 | G6: 2018-03-26 | H6: =Table13489[[#This Row],[ ألأيجار]]/360 -> 15.55555556 | I6: 3 | J6: =Table13489[[#This Row],[الإجمالي]]-Table13489[[#This Row],[المطلوب]] -> 4200 | K6: =(Table13489[[#This Row],[الإجمالي]]/$Q$3)*Table13489[[#This Row],[ طريقة الدفع]] -> 1400 | L6: =Table13489[[#This Row],[ ألأيجار]]+Table13489[[#This Row],[ماء]] -> 5600 | N6: 5600 | O6: 1 | P6: جويل سار اندينا | Q6: 1
A7: =IF(D7<1000,IF(D7>0,"A","B"),"c") -> B | D7: =IF(Table13489[[#This Row],[ تاريخ الانتهاء]]<$B$4,$B$4-Table13489[[#This Row],[ تاريخ الانتهاء]],0) -> 0 | F7: =IF(Table13489[[#This Row],[عدد أيام تأخير]]>0,Table13489[[#This Row],[عدد أيام تأخير]]*Table13489[[#This Row],[ايجار يومي]],0) -> 0 | G7: 2018-05-01 | H7: =Table13489[[#This Row],[ ألأيجار]]/360 -> 50 | I7: 1 | J7: =Table13489[[#This Row],[الإجمالي]]-Table13489[[#This Row],[المطلوب]] -> 16500 | K7: =(Table13489[[#This Row],[الإجمالي]]/$Q$3)*Table13489[[#This Row],[ طريقة الدفع]] -> 1500 | L7: =Table13489[[#This Row],[ ألأيجار]]+Table13489[[#This Row],[ماء]] -> 18000 | N7: 18000 | O7: 2 | P7: غوبال كريشنان ناير | Q7: =Q6+1 -> 2
A8: A | D8: =IF(Table13489[[#This Row],[ تاريخ الانتهاء]]<$B$4,$B$4-Table13489[[#This Row],[ تاريخ الانتهاء]],0) -> 34 | F8: =IF(Table13489[[#This Row],[عدد أيام تأخير]]>0,Table13489[[#This Row],[عدد أيام تأخير]]*Table13489[[#This Row],[ايجار يومي]],0) -> 736.6666667 | G8: 2018-02-20 | H8: =Table13489[[#This Row],[ ألأيجار]]/360 -> 21.66666667 | I8: 1 | J8: =Table13489[[#This Row],[الإجمالي]]-Table13489[[#This Row],[المطلوب]] -> 7150 | K8: =(Table13489[[#This Row],[الإجمالي]]/$Q$3)*Table13489[[#This Row],[ طريقة الدفع]] -> 650 | L8: =Table13489[[#This Row],[ ألأيجار]]+Table13489[[#This Row],[ماء]] -> 7800 | N8: 7800 | O8: 3 | P8: دبيدار زايد | Q8: =Q7+1 -> 3
A9: B | D9: =IF(Table13489[[#This Row],[ تاريخ الانتهاء]]<$B$4,$B$4-Table13489[[#This Row],[ تاريخ الانتهاء]],0) -> 0 | F9: =IF(Table13489[[#This Row],[عدد أيام تأخير]]>0,Table13489[[#This Row],[عدد أيام تأخير]]*Table13489[[#This Row],[ايجار يومي]],0) -> 0 | G9: 2018-04-05 | H9: =Table13489[[#This Row],[ ألأيجار]]/360 -> 23.33333333 | I9: 1 | J9: =Table13489[[#This Row],[الإجمالي]]-Table13489[[#This Row],[المطلوب]] -> 7700 | K9: =(Table13489[[#This Row],[الإجمالي]]/$Q$3)*Table13489[[#This Row],[ طريقة الدفع]] -> 700 | L9: =Table13489[[#This Row],[ ألأيجار]]+Table13489[[#This Row],[ماء]] -> 8400 | N9: 8400 | O9: 4 | P9: محمد عقيل ناشر | Q9: 4
A10: A | D10: =IF(Table13489[[#This Row],[ تاريخ الانتهاء]]<$B$4,$B$4-Table13489[[#This Row],[ تاريخ الانتهاء]],0) -> 50 | F10: =IF(Table13489[[#This Row],[عدد أيام تأخير]]>0,Table13489[[#This Row],[عدد أيام تأخير]]*Table13489[[#This Row],[ايجار يومي]],0) -> 1333.333333 | G10: 2018-02-04 | H10: =Table13489[[#This Row],[ ألأيجار]]/360 -> 26.66666667 | I10: 1 | J10: =Table13489[[#This Row],[الإجمالي]]-Table13489[[#This Row],[المطلوب]] -> 8800 | K10: =(Table13489[[#This Row],[الإجمالي]]/$Q$3)*Table13489[[#This Row],[ طريقة الدفع]] -> 800 | L10: =Table13489[[#This Row],[ ألأيجار]]+Table13489[[#This Row],[ماء]] -> 9600 | N10: 9600 | O10: 5 | P10: حنيف الله سيد جان | Q10: 5
A11: B | D11: =IF(Table13489[[#This Row],[ تاريخ الانتهاء]]<$B$4,$B$4-Table13489[[#This Row],[ تاريخ الانتهاء]],0) -> 0 | F11: =IF(Table13489[[#This Row],[عدد أيام تأخير]]>0,Table13489[[#This Row],[عدد أيام تأخير]]*Table13489[[#This Row],[ايجار يومي]],0) -> 0 | G11: 2018-04-16 | H11: =Table13489[[#This Row],[ ألأيجار]]/360 -> 20 | I11: 1 | J11: =Table13489[[#This Row],[الإجمالي]]-Table13489[[#This Row],[المطلوب]] -> 6600 | K11: =(Table13489[[#This Row],[الإجمالي]]/$Q$3)*Table13489[[#This Row],[ طريقة الدفع]] -> 600 | L11: =Table13489[[#This Row],[ ألأيجار]]+Table13489[[#This Row],[ماء]] -> 7200 | N11: 7200 | O11: 6 | P11: باتيل عبدالمجيد بهايجي | Q11: 6
A12: B | D12: =IF(Table13489[[#This Row],[ تاريخ الانتهاء]]<$B$4,$B$4-Table13489[[#This Row],[ تاريخ الانتهاء]],0) -> 0 | F12: =IF(Table13489[[#This Row],[عدد أيام تأخير]]>0,Table13489[[#This Row],[عدد أيام تأخير]]*Table13489[[#This Row],[ايجار يومي]],0) -> 0 | G12: 2018-06-30 | H12: =Table13489[[#This Row],[ ألأيجار]]/360 -> 19.77777778 | I12: 6 | J12: =Table13489[[#This Row],[الإجمالي]]-Table13489[[#This Row],[المطلوب]] -> 3560 | K12: =(Table13489[[#This Row],[الإجمالي]]/$Q$3)*Table13489[[#This Row],[ طريقة الدفع]] -> 3560 | L12: =Table13489[[#This Row],[ ألأيجار]]+Table13489[[#This Row],[ماء]] -> 7120 | N12: 7120 | O12: 7 | P12: محمد ارشد | Q12: 7
A13: B | D13: =IF(Table13489[[#This Row],[ تاريخ الانتهاء]]<$B$4,$B$4-Table13489[[#This Row],[ تاريخ الانتهاء]],0) -> 0 | F13: =IF(Table13489[[#This Row],[عدد أيام تأخير]]>0,Table13489[[#This Row],[عدد أيام تأخير]]*Table13489[[#This Row],[ايجار يومي]],0) -> 0 | H13: =Table13489[[#This Row],[ ألأيجار]]/360 -> 16.66666667 | I13: 1 | J13: =Table13489[[#This Row],[الإجمالي]]-Table13489[[#This Row],[المطلوب]] -> 5500 | K13: =(Table13489[[#This Row],[الإجمالي]]/$Q$3)*Table13489[[#This Row],[ طريقة الدفع]] -> 500 | L13: =Table13489[[#This Row],[ ألأيجار]]+Table13489[[#This Row],[ماء]] -> 6000 | N13: 6000 | O13: 8 | P13: فاضي | Q13: 8
A14: B | D14: =IF(Table13489[[#This Row],[ تاريخ الانتهاء]]<$B$4,$B$4-Table13489[[#This Row],[ تاريخ الانتهاء]],0) -> 0 | F14: =IF(Table13489[[#This Row],[عدد أيام تأخير]]>0,Table13489[[#This Row],[عدد أيام تأخير]]*Table13489[[#This Row],[ايجار يومي]],0) -> 0 | G14: 2018-03-29 | H14: =Table13489[[#This Row],[ ألأيجار]]/360 -> 21.66666667 | I14: 1 | J14: =Table13489[[#This Row],[الإجمالي]]-Table13489[[#This Row],[المطلوب]] -> 7150 | K14: =(Table13489[[#This Row],[الإجمالي]]/$Q$3)*Table13489[[#This Row],[ طريقة الدفع]] -> 650 | L14: =Table13489[[#This Row],[ ألأيجار]]+Table13489[[#This Row],[ماء]] -> 7800 | N14: 7800 | O14: 9 | P14: علوي محمد حسن مديحج | Q14: 9
A15: c | D15: =IF(Table13489[[#This Row],[ تاريخ الانتهاء]]<$B$4,$B$4-Table13489[[#This Row],[ تاريخ الانتهاء]],0) -> 43185 | F15: =IF(Table13489[[#This Row],[عدد أيام تأخير]]>0,Table13489[[#This Row],[عدد أيام تأخير]]*Table13489[[#This Row],[ايجار يومي]],0) -> 1007650 | H15: =Table13489[[#This Row],[ ألأيجار]]/360 -> 23.33333333 | I15: 1 | J15: =Table13489[[#This Row],[الإجمالي]]-Table13489[[#This Row],[المطلوب]] -> 7700 | K15: =(Table13489[[#This Row],[الإجمالي]]/$Q$3)*Table13489[[#This Row],[ طريقة الدفع]] -> 700 | L15: =Table13489[[#This Row],[ ألأيجار]]+Table13489[[#This Row],[ماء]] -> 8400 | N15: 8400 | O15: 10 | P15: فاضي | Q15: 10
A16: c | D16: =IF(Table13489[[#This Row],[ تاريخ الانتهاء]]<$B$4,$B$4-Table13489[[#This Row],[ تاريخ الانتهاء]],0) -> 43185 | F16: =IF(Table13489[[#This Row],[عدد أيام تأخير]]>0,Table13489[[#This Row],[عدد أيام تأخير]]*Table13489[[#This Row],[ايجار يومي]],0) -> 1151600 | H16: =Table13489[[#This Row],[ ألأيجار]]/360 -> 26.66666667 | I16: 1 | J16: =Table13489[[#This Row],[الإجمالي]]-Table13489[[#This Row],[المطلوب]] -> 8800 | K16: =(Table13489[[#This Row],[الإجمالي]]/$Q$3)*Table13489[[#This Row],[ طريقة الدفع]] -> 800 | L16: =Table13489[[#This Row],[ ألأيجار]]+Table13489[[#This Row],[ماء]] -> 9600 | N16: 9600 | O16: 11 | P16: فاضي | Q16: 11
A17: A | D17: =IF(Table13489[[#This Row],[ تاريخ الانتهاء]]<$B$4,$B$4-Table13489[[#This Row],[ تاريخ الانتهاء]],0) -> 67 | F17: =IF(Table13489[[#This Row],[عدد أيام تأخير]]>0,Table13489[[#This Row],[عدد أيام تأخير]]*Table13489[[#This Row],[ايجار يومي]],0) -> 1340 | G17: 2018-01-18 | H17: =Table13489[[#This Row],[ ألأيجار]]/360 -> 20 | I17: 3 | J17: =Table13489[[#This Row],[الإجمالي]]-Table13489[[#This Row],[المطلوب]] -> 5400 | K17: =(Table13489[[#This Row],[الإجمالي]]/$Q$3)*Table13489[[#This Row],[ طريقة الدفع]] -> 1800 | L17: =Table13489[[#This Row],[ ألأيجار]]+Table13489[[#This Row],[ماء]] -> 7200 | N17: 7200 | O17: 12 | P17: تانوير عباس | Q17: 12
A18: c | D18: =IF(Table13489[[#This Row],[ تاريخ الانتهاء]]<$B$4,$B$4-Table13489[[#This Row],[ تاريخ الانتهاء]],0) -> 43185 | F18: =IF(Table13489[[#This Row],[عدد أيام تأخير]]>0,Table13489[[#This Row],[عدد أيام تأخير]]*Table13489[[#This Row],[ايجار يومي]],0) -> 863700 | H18: =Table13489[[#This Row],[ ألأيجار]]/360 -> 20 | I18: 1 | J18: =Table13489[[#This Row],[الإجمالي]]-Table13489[[#This Row],[المطلوب]] -> 6600 | K18: =(Table13489[[#This Row],[الإجمالي]]/$Q$3)*Table13489[[#This Row],[ طريقة الدفع]] -> 600 | L18: =Table13489[[#This Row],[ ألأيجار]]+Table13489[[#This Row],[ماء]] -> 7200 | N18: 7200 | O18: 13 | P18: فاضي | Q18: 13
A19: c | D19: =IF(Table13489[[#This Row],[ تاريخ الانتهاء]]<$B$4,$B$4-Table13489[[#This Row],[ تاريخ الانتهاء]],0) -> 43185 | F19: =IF(Table13489[[#This Row],[عدد أيام تأخير]]>0,Table13489[[#This Row],[عدد أيام تأخير]]*Table13489[[#This Row],[ايجار يومي]],0) -> 863700 | H19: =Table13489[[#This Row],[ ألأيجار]]/360 -> 20 | I19: 1 | J19: =Table13489[[#This Row],[الإجمالي]]-Table13489[[#This Row],[المطلوب]] -> 6600 | K19: =(Table13489[[#This Row],[الإجمالي]]/$Q$3)*Table13489[[#This Row],[ طريقة الدفع]] -> 600 | L19: =Table13489[[#This Row],[ ألأيجار]]+Table13489[[#This Row],[ماء]] -> 7200 | N19: 7200 | O19: 14 | P19: فاضي | Q19: 14
A20: c | D20: =IF(Table13489[[#This Row],[ تاريخ الانتهاء]]<$B$4,$B$4-Table13489[[#This Row],[ تاريخ الانتهاء]],0) -> 43185 | F20: =IF(Table13489[[#This Row],[عدد أيام تأخير]]>0,Table13489[[#This Row],[عدد أيام تأخير]]*Table13489[[#This Row],[ايجار يومي]],0) -> 863700 | H20: =Table13489[[#This Row],[ ألأيجار]]/360 -> 20 | I20: 1 | J20: =Table13489[[#This Row],[الإجمالي]]-Table13489[[#This Row],[المطلوب]] -> 6600 | K20: =(Table13489[[#This Row],[الإجمالي]]/$Q$3)*Table13489[[#This Row],[ طريقة الدفع]] -> 600 | L20: =Table13489[[#This Row],[ ألأيجار]]+Table13489[[#This Row],[ماء]] -> 7200 | N20: 7200 | O20: 15 | P20: فاضي | Q20: 15
A21: c | D21: =IF(Table13489[[#This Row],[ تاريخ الانتهاء]]<$B$4,$B$4-Table13489[[#This Row],[ تاريخ الانتهاء]],0) -> 43185 | F21: =IF(Table13489[[#This Row],[عدد أيام تأخير]]>0,Table13489[[#This Row],[عدد أيام تأخير]]*Table13489[[#This Row],[ايجار يومي]],0) -> 1151600 | H21: =Table13489[[#This Row],[ ألأيجار]]/360 -> 26.66666667 | I21: 1 | J21: =Table13489[[#This Row],[الإجمالي]]-Table13489[[#This Row],[المطلوب]] -> 8800 | K21: =(Table13489[[#This Row],[الإجمالي]]/$Q$3)*Table13489[[#This Row],[ طريقة الدفع]] -> 800 | L21: =Table13489[[#This Row],[ ألأيجار]]+Table13489[[#This Row],[ماء]] -> 9600 | N21: 9600 | O21: 16 | P21: فاضي | Q21: 16
A22: B | D22: =IF(Table13489[[#This Row],[ تاريخ الانتهاء]]<$B$4,$B$4-Table13489[[#This Row],[ تاريخ الانتهاء]],0) -> 0 | F22: =IF(Table13489[[#This Row],[عدد أيام تأخير]]>0,Table13489[[#This Row],[عدد أيام تأخير]]*Table13489[[#This Row],[ايجار يومي]],0) -> 0 | G22: 2018-04-02 | H22: =Table13489[[#This Row],[ ألأيجار]]/360 -> 15 | I22: 1 | J22: =Table13489[[#This Row],[الإجمالي]]-Table13489[[#This Row],[المطلوب]] -> 4950 | K22: =(Table13489[[#This Row],[الإجمالي]]/$Q$3)*Table13489[[#This Row],[ طريقة الدفع]] -> 450 | L22: =Table13489[[#This Row],[ ألأيجار]]+Table13489[[#This Row],[ماء]] -> 5400 | N22: 5400 | O22: 17 | P22: محمد عوض القرادي | Q22: 17
A23: A | D23: =IF(Table13489[[#This Row],[ تاريخ الانتهاء]]<$B$4,$B$4-Table13489[[#This Row],[ تاريخ الانتهاء]],0) -> 9 | F23: =IF(Table13489[[#This Row],[عدد أيام تأخير]]>0,Table13489[[#This Row],[عدد أيام تأخير]]*Table13489[[#This Row],[ايجار يومي]],0) -> 195 | G23: 2018-03-17 | H23: =Table13489[[#This Row],[ ألأيجار]]/360 -> 21.66666667 | I23: 1 | J23: =Table13489[[#This Row],[الإجمالي]]-Table13489[[#This Row],[المطلوب]] -> 7150 | K23: =(Table13489[[#This Row],[الإجمالي]]/$Q$3)*Table13489[[#This Row],[ طريقة الدفع]] -> 650 | L23: =Table13489[[#This Row],[ ألأيجار]]+Table13489[[#This Row],[ماء]] -> 7800 | N23: 7800 | O23: 18 | P23: سيرتين بيرتين جان سيروموني | Q23: 18
A24: A | D24: =IF(Table13489[[#This Row],[ تاريخ الانتهاء]]<$B$4,$B$4-Table13489[[#This Row],[ تاريخ الانتهاء]],0) -> 52 | F24: =IF(Table13489[[#This Row],[عدد أيام تأخير]]>0,Table13489[[#This Row],[عدد أيام تأخير]]*Table13489[[#This Row],[ايجار يومي]],0) -> 1560 | G24: 2018-02-02 | H24: =Table13489[[#This Row],[ ألأيجار]]/360 -> 30 | I24: 1 | J24: =Table13489[[#This Row],[الإجمالي]]-Table13489[[#This Row],[المطلوب]] -> 9900 | K24: =(Table13489[[#This Row],[الإجمالي]]/$Q$3)*Table13489[[#This Row],[ طريقة الدفع]] -> 900 | L24: =Table13489[[#This Row],[ ألأيجار]]+Table13489[[#This Row],[ماء]] -> 10800 | N24: 10800 | O24: 19 | P24: جوني جوزيف راج | Q24: 19
A25: A | D25: =IF(Table13489[[#This Row],[ تاريخ الانتهاء]]<$B$4,$B$4-Table13489[[#This Row],[ تاريخ الانتهاء]],0) -> 27 | F25: =IF(Table13489[[#This Row],[عدد أيام تأخير]]>0,Table13489[[#This Row],[عدد أيام تأخير]]*Table13489[[#This Row],[ايجار يومي]],0) -> 675 | G25: 2018-02-27 | H25: =Table13489[[#This Row],[ ألأيجار]]/360 -> 25 | I25: 1 | J25: =Table13489[[#This Row],[الإجمالي]]-Table13489[[#This Row],[المطلوب]] -> 8250 | K25: =(Table13489[[#This Row],[الإجمالي]]/$Q$3)*Table13489[[#This Row],[ طريقة الدفع]] -> 750 | L25: =Table13489[[#This Row],[ ألأيجار]]+Table13489[[#This Row],[ماء]] -> 9000 | N25: 9000 | O25: 20 | P25: جوس راجبان راجبان | Q25: 20
A26: A | D26: =IF(Table13489[[#This Row],[ تاريخ الانتهاء]]<$B$4,$B$4-Table13489[[#This Row],[ تاريخ الانتهاء]],0) -> 37 | F26: =IF(Table13489[[#This Row],[عدد أيام تأخير]]>0,Table13489[[#This Row],[عدد أيام تأخير]]*Table13489[[#This Row],[ايجار يومي]],0) -> 616.6666667 | G26: 2018-02-17 | H26: =Table13489[[#This Row],[ ألأيجار]]/360 -> 16.66666667 | I26: 1 | J26: =Table13489[[#This Row],[الإجمالي]]-Table13489[[#This Row],[المطلوب]] -> 5500 | K26: =(Table13489[[#This Row],[الإجمالي]]/$Q$3)*Table13489[[#This Row],[ طريقة الدفع]] -> 500 | L26: =Table13489[[#This Row],[ ألأيجار]]+Table13489[[#This Row],[ماء]] -> 6000 | N26: 6000 | O26: 21 | P26: عوض الله بن مرزوق | Q26: 21
A27: A | D27: =IF(Table13489[[#This Row],[ تاريخ الانتهاء]]<$B$4,$B$4-Table13489[[#This Row],[ تاريخ الانتهاء]],0) -> 82 | F27: =IF(Table13489[[#This Row],[عدد أيام تأخير]]>0,Table13489[[#This Row],[عدد أيام تأخير]]*Table13489[[#This Row],[ايجار يومي]],0) -> 1366.666667 | G27: 2018-01-03 | H27: =Table13489[[#This Row],[ ألأيجار]]/360 -> 16.66666667 | I27: 1 | J27: =Table13489[[#This Row],[الإجمالي]]-Table13489[[#This Row],[المطلوب]] -> 5500 | K27: =(Table13489[[#This Row],[الإجمالي]]/$Q$3)*Table13489[[#This Row],[ طريقة الدفع]] -> 500 | L27: =Table13489[[#This Row],[ ألأيجار]]+Table13489[[#This Row],[ماء]] -> 6000 | N27: 6000 | O27: 22 | P27: محمد بن مزين غنام السبيعي | Q27: 22
A28: A | D28: =IF(Table13489[[#This Row],[ تاريخ الانتهاء]]<$B$4,$B$4-Table13489[[#This Row],[ تاريخ الانتهاء]],0) -> 303 | F28: =IF(Table13489[[#This Row],[عدد أيام تأخير]]>0,Table13489[[#This Row],[عدد أيام تأخير]]*Table13489[[#This Row],[ايجار يومي]],0) -> 8080 | G28: 2017-05-27 | H28: =Table13489[[#This Row],[ ألأيجار]]/360 -> 26.66666667 | I28: 1 | J28: =Table13489[[#This Row],[الإجمالي]]-Table13489[[#This Row],[المطلوب]] -> 8800 | K28: =(Table13489[[#This Row],[الإجمالي]]/$Q$3)*Table13489[[#This Row],[ طريقة الدفع]] -> 800 | L28: =Table13489[[#This Row],[ ألأيجار]]+Table13489[[#This Row],[ماء]] -> 9600 | N28: 9600 | O28: 23 | P28: حلمي عبدالقوي صالح بن هرهره | Q28: 23
A29: A | D29: =IF(Table13489[[#This Row],[ تاريخ الانتهاء]]<$B$4,$B$4-Table13489[[#This Row],[ تاريخ الانتهاء]],0) -> 118 | F29: =IF(Table13489[[#This Row],[عدد أيام تأخير]]>0,Table13489[[#This Row],[عدد أيام تأخير]]*Table13489[[#This Row],[ايجار يومي]],0) -> 4588.888889 | G29: 2017-11-28 | H29: =Table13489[[#This Row],[ ألأيجار]]/360 -> 38.88888889 | I29: 1 | J29: =Table13489[[#This Row],[الإجمالي]]-Table13489[[#This Row],[المطلوب]] -> 12833.33333 | K29: =(Table13489[[#This Row],[الإجمالي]]/$Q$3)*Table13489[[#This Row],[ طريقة الدفع]] -> 1166.666667 | L29: =Table13489[[#This Row],[ ألأيجار]]+Table13489[[#This Row],[ماء]] -> 14000 | N29: 14000 | O29: M1 | P29: علي بن مشلح بن مقحم الصعيري المطيري | Q29: 24
A30: B | D30: =IF(Table13489[[#This Row],[ تاريخ الانتهاء]]<$B$4,$B$4-Table13489[[#This Row],[ تاريخ الانتهاء]],0) -> 0 | F30: =IF(Table13489[[#This Row],[عدد أيام تأخير]]>0,Table13489[[#This Row],[عدد أيام تأخير]]*Table13489[[#This Row],[ايجار يومي]],0) -> 0 | G30: 2018-05-03 | H30: =Table13489[[#This Row],[ ألأيجار]]/360 -> 33.33333333 | I30: 3 | J30: =Table13489[[#This Row],[الإجمالي]]-Table13489[[#This Row],[المطلوب]] -> 9000 | K30: =(Table13489[[#This Row],[الإجمالي]]/$Q$3)*Table13489[[#This Row],[ طريقة الدفع]] -> 3000 | L30: =Table13489[[#This Row],[ ألأيجار]]+Table13489[[#This Row],[ماء]] -> 12000 | N30: 12000 | O30: M2 | P30: عبدالعزيز ابراهيم عبدالمحس | Q30: 25
A31: B | D31: =IF(Table13489[[#This Row],[ تاريخ الانتهاء]]<$B$4,$B$4-Table13489[[#This Row],[ تاريخ الانتهاء]],0) -> 0 | F31: =IF(Table13489[[#This Row],[عدد أيام تأخير]]>0,Table13489[[#This Row],[عدد أيام تأخير]]*Table13489[[#This Row],[ايجار يومي]],0) -> 0 | G31: 2018-05-16 | H31: =Table13489[[#This Row],[ ألأيجار]]/360 -> 30.55555556 | I31: 6 | J31: =Table13489[[#This Row],[الإجمالي]]-Table13489[[#This Row],[المطلوب]] -> 5500 | K31: =(Table13489[[#This Row],[الإجمالي]]/$Q$3)*Table13489[[#This Row],[ طريقة الدفع]] -> 5500 | L31: =Table13489[[#This Row],[ ألأيجار]]+Table13489[[#This Row],[ماء]] -> 11000 | N31: 11000 | O31: M3 | P31: سارة بنت عبدالحميد بن المبيوق | Q31: 26
A32: B | K32: =SUBTOTAL(109,Table13489[المطلوب]) -> 30476.66667 | L32: =SUBTOTAL(109,Table13489[الإجمالي]) -> 225520 | M32: =SUBTOTAL(109,Table13489[ماء]) -> 0 | N32: =SUBTOTAL(109,Table13489[[ ألأيجار]]) -> 225520
A33: B
A34: B
A35: B

Sheet الدمام
A3: A | B3: =TODAY() -> 2018-03-26 | C3: تاريخ الهجري | P3: الشقق الفارغه | Q3: 12
A4: A | B4: =TODAY() -> 2018-03-26 | C4: الموافق | F4: 7 | J4: جوال= | P4: المحلات الفارغه
A5: =IF(D5>0,"A","B") -> A | B5: تأمين | C5: رقم الجوال | D5: عدد أيام تأخير | E5: ملاحظات | F5: المطلوب دفعه | G5: تاريخ الانتهاء | H5: ايجار يومي | I5: طريقة الدفع | J5: الباقي | K5: المطلوب | L5: الإجمالي | M5: ماء | N5: ألأيجار | O5: رقم الشقة | P5: اسم المستأجر | Q5: الرقم
A6: =IF(D6<1000,IF(D6>0,"A","B"),"c") -> B | B6: 150 | D6: =IF(Table134895[[#This Row],[ تاريخ الانتهاء]]<$B$4,$B$4-Table134895[[#This Row],[ تاريخ الانتهاء]],0) -> 0 | F6: =IF(Table134895[[#This Row],[عدد أيام تأخير]]>0,Table134895[[#This Row],[عدد أيام تأخير]]*Table134895[[#This Row],[ايجار يومي]],0) -> 0 | G6: 2018-04-01 | H6: =Table134895[[#This Row],[الإجمالي]]/360 -> 16.66666667 | I6: 2 | J6: =Table134895[[#This Row],[الإجمالي]]-Table134895[[#This Row],[المطلوب]] -> 5000 | K6: =(Table134895[[#This Row],[الإجمالي]]/$Q$3)*Table134895[[#This Row],[ طريقة الدفع]] -> 1000 | L6: =Table134895[[#This Row],[ ألأيجار]]+Table134895[[#This Row],[ماء]] -> 6000 | N6: 6000 | O6: G-1 | P6: عبدالله مون نصيراول حق | Q6: 1
A7: =IF(D7<1000,IF(D7>0,"A","B"),"c") -> A | B7: بدون تأمين | D7: =IF(Table134895[[#This Row],[ تاريخ الانتهاء]]<$B$4,$B$4-Table134895[[#This Row],[ تاريخ الانتهاء]],0) -> 204 | F7: =IF(Table134895[[#This Row],[عدد أيام تأخير]]>0,Table134895[[#This Row],[عدد أيام تأخير]]*Table134895[[#This Row],[ايجار يومي]],0) -> 5440 | G7: 2017-09-03 | H7: =Table134895[[#This Row],[الإجمالي]]/360 -> 26.66666667 | I7: 1 | J7: =Table134895[[#This Row],[الإجمالي]]-Table134895[[#This Row],[المطلوب]] -> 8800 | K7: =(Table134895[[#This Row],[الإجمالي]]/$Q$3)*Table134895[[#This Row],[ طريقة الدفع]] -> 800 | L7: =Table134895[[#This Row],[ ألأيجار]]+Table134895[[#This Row],[ماء]] -> 9600 | N7: 9600 | O7: G-2 | P7: نوشاد عبد الصمد | Q7: =Q6+1 -> 2
A8: A | B8: 250 | D8: =IF(Table134895[[#This Row],[ تاريخ الانتهاء]]<$B$4,$B$4-Table134895[[#This Row],[ تاريخ الانتهاء]],0) -> 14 | F8: =IF(Table134895[[#This Row],[عدد أيام تأخير]]>0,Table134895[[#This Row],[عدد أيام تأخير]]*Table134895[[#This Row],[ايجار يومي]],0) -> 247.3333333 | G8: 2018-03-12 | H8: =Table134895[[#This Row],[الإجمالي]]/360 -> 17.66666667 | I8: 1 | J8: =Table134895[[#This Row],[الإجمالي]]-Table134895[[#This Row],[المطلوب]] -> 5830 | K8: =(Table134895[[#This Row],[الإجمالي]]/$Q$3)*Table134895[[#This Row],[ طريقة الدفع]] -> 530 | L8: =Table134895[[#This Row],[ ألأيجار]]+Table134895[[#This Row],[ماء]] -> 6360 | N8: 6360 | O8: G-3 | P8: محمد ثاقب محمد عاصف خان | Q8: 3
A9: c | D9: =IF(Table134895[[#This Row],[ تاريخ الانتهاء]]<$B$4,$B$4-Table134895[[#This Row],[ تاريخ الانتهاء]],0) -> 43185 | F9: =IF(Table134895[[#This Row],[عدد أيام تأخير]]>0,Table134895[[#This Row],[عدد أيام تأخير]]*Table134895[[#This Row],[ايجار يومي]],0) -> 0 | H9: =Table134895[[#This Row],[الإجمالي]]/360 -> 0 | J9: =Table134895[[#This Row],[الإجمالي]]-Table134895[[#This Row],[المطلوب]] -> 0 | K9: =(Table134895[[#This Row],[الإجمالي]]/$Q$3)*Table134895[[#This Row],[ طريقة الدفع]] -> 0 | L9: =Table134895[[#This Row],[ ألأيجار]]+Table134895[[#This Row],[ماء]] -> 0 | O9: G-4 | P9: فاضي | Q9: 4
A10: c | D10: =IF(Table134895[[#This Row],[ تاريخ الانتهاء]]<$B$4,$B$4-Table134895[[#This Row],[ تاريخ الانتهاء]],0) -> 43185 | F10: =IF(Table134895[[#This Row],[عدد أيام تأخير]]>0,Table134895[[#This Row],[عدد أيام تأخير]]*Table134895[[#This Row],[ايجار يومي]],0) -> 0 | H10: =Table134895[[#This Row],[الإجمالي]]/360 -> 0 | J10: =Table134895[[#This Row],[الإجمالي]]-Table134895[[#This Row],[المطلوب]] -> 0 | K10: =(Table134895[[#This Row],[الإجمالي]]/$Q$3)*Table134895[[#This Row],[ طريقة الدفع]] -> 0 | L10: =Table134895[[#This Row],[ ألأيجار]]+Table134895[[#This Row],[ماء]] -> 0 | O10: G-5 | P10: فاضي | Q10: 5
A11: B | B11: 300 | D11: =IF(Table134895[[#This Row],[ تاريخ الانتهاء]]<$B$4,$B$4-Table134895[[#This Row],[ تاريخ الانتهاء]],0) -> 0 | F11: =IF(Table134895[[#This Row],[عدد أيام تأخير]]>0,Table134895[[#This Row],[عدد أيام تأخير]]*Table134895[[#This Row],[ايجار يومي]],0) -> 0 | G11: 2018-04-18 | H11: =Table134895[[#This Row],[الإجمالي]]/360 -> 14.33333333 | I11: 3 | J11: =Table134895[[#This Row],[الإجمالي]]-Table134895[[#This Row],[المطلوب]] -> 3870 | K11: =(Table134895[[#This Row],[الإجمالي]]/$Q$3)*Table134895[[#This Row],[ طريقة الدفع]] -> 1290 | L11: =Table134895[[#This Row],[ ألأيجار]]+Table134895[[#This Row],[ماء]] -> 5160 | N11: 5160 | O11: G-6 | P11: محمد شريف عبدالغني | Q11: 6
A12: A | B12: 250 | D12: =IF(Table134895[[#This Row],[ تاريخ الانتهاء]]<$B$4,$B$4-Table134895[[#This Row],[ تاريخ الانتهاء]],0) -> 15 | F12: =IF(Table134895[[#This Row],[عدد أيام تأخير]]>0,Table134895[[#This Row],[عدد أيام تأخير]]*Table134895[[#This Row],[ايجار يومي]],0) -> 225 | G12: 2018-03-11 | H12: =Table134895[[#This Row],[الإجمالي]]/360 -> 15 | I12: 2 | J12: =Table134895[[#This Row],[الإجمالي]]-Table134895[[#This Row],[المطلوب]] -> 4500 | K12: =(Table134895[[#This Row],[الإجمالي]]/$Q$3)*Table134895[[#This Row],[ طريقة الدفع]] -> 900 | L12: =Table134895[[#This Row],[ ألأيجار]]+Table134895[[#This Row],[ماء]] -> 5400 | N12: 5400 | O12: 101 | P12: محمد عزيزالدين | Q12: 7
A13: A | B13: 270 | D13: =IF(Table134895[[#This Row],[ تاريخ الانتهاء]]<$B$4,$B$4-Table134895[[#This Row],[ تاريخ الانتهاء]],0) -> 1 | F13: =IF(Table134895[[#This Row],[عدد أيام تأخير]]>0,Table134895[[#This Row],[عدد أيام تأخير]]*Table134895[[#This Row],[ايجار يومي]],0) -> 17.66666667 | G13: 2018-03-25 | H13: =Table134895[[#This Row],[الإجمالي]]/360 -> 17.66666667 | I13: 1 | J13: =Table134895[[#This Row],[الإجمالي]]-Table134895[[#This Row],[المطلوب]] -> 5830 | K13: =(Table134895[[#This Row],[الإجمالي]]/$Q$3)*Table134895[[#This Row],[ طريقة الدفع]] -> 530 | L13: =Table134895[[#This Row],[ ألأيجار]]+Table134895[[#This Row],[ماء]] -> 6360 | N13: 6360 | O13: 102 | P13: شاجو جليل | Q13: 8
A14: c | D14: =IF(Table134895[[#This Row],[ تاريخ الانتهاء]]<$B$4,$B$4-Table134895[[#This Row],[ تاريخ الانتهاء]],0) -> 43185 | F14: =IF(Table134895[[#This Row],[عدد أيام تأخير]]>0,Table134895[[#This Row],[عدد أيام تأخير]]*Table134895[[#This Row],[ايجار يومي]],0) -> 0 | H14: =Table134895[[#This Row],[الإجمالي]]/360 -> 0 | J14: =Table134895[[#This Row],[الإجمالي]]-Table134895[[#This Row],[المطلوب]] -> 0 | K14: =(Table134895[[#This Row],[الإجمالي]]/$Q$3)*Table134895[[#This Row],[ طريقة الدفع]] -> 0 | L14: =Table134895[[#This Row],[ ألأيجار]]+Table134895[[#This Row],[ماء]] -> 0 | O14: 103 | P14: فاضي | Q14: 9
A15: c | D15: =IF(Table134895[[#This Row],[ تاريخ الانتهاء]]<$B$4,$B$4-Table134895[[#This Row],[ تاريخ الانتهاء]],0) -> 43185 | F15: =IF(Table134895[[#This Row],[عدد أيام تأخير]]>0,Table134895[[#This Row],[عدد أيام تأخير]]*Table134895[[#This Row],[ايجار يومي]],0) -> 0 | H15: =Table134895[[#This Row],[الإجمالي]]/360 -> 0 | J15: =Table134895[[#This Row],[الإجمالي]]-Table134895[[#This Row],[المطلوب]] -> 0 | K15: =(Table134895[[#This Row],[الإجمالي]]/$Q$3)*Table134895[[#This Row],[ طريقة الدفع]] -> 0 | L15: =Table134895[[#This Row],[ ألأيجار]]+Table134895[[#This Row],[ماء]] -> 0 | O15: 104 | P15: فاضي | Q15: 10
A16: c | D16: =IF(Table134895[[#This Row],[ تاريخ الانتهاء]]<$B$4,$B$4-Table134895[[#This Row],[ تاريخ الانتهاء]],0) -> 43185 | F16: =IF(Table134895[[#This Row],[عدد أيام تأخير]]>0,Table134895[[#This Row],[عدد أيام تأخير]]*Table134895[[#This Row],[ايجار يومي]],0) -> 0 | H16: =Table134895[[#This Row],[الإجمالي]]/360 -> 0 | J16: =Table134895[[#This Row],[الإجمالي]]-Table134895[[#This Row],[المطلوب]] -> 0 | K16: =(Table134895[[#This Row],[الإجمالي]]/$Q$3)*Table134895[[#This Row],[ طريقة الدفع]] -> 0 | L16: =Table134895[[#This Row],[ ألأيجار]]+Table134895[[#This Row],[ماء]] -> 0 | O16: 105 | P16: فاضي | Q16: 11
A17: A | B17: 270 | D17: =IF(Table134895[[#This Row],[ تاريخ الانتهاء]]<$B$4,$B$4-Table134895[[#This Row],[ تاريخ الانتهاء]],0) -> 30 | F17: =IF(Table134895[[#This Row],[عدد أيام تأخير]]>0,Table134895[[#This Row],[عدد أيام تأخير]]*Table134895[[#This Row],[ايجار يومي]],0) -> 530 | G17: 2018-02-24 | H17: =Table134895[[#This Row],[الإجمالي]]/360 -> 17.66666667 | I17: 1 | J17: =Table134895[[#This Row],[الإجمالي]]-Table134895[[#This Row],[المطلوب]] -> 5830 | K17: =(Table134895[[#This Row],[الإجمالي]]/$Q$3)*Table134895[[#This Row],[ طريقة الدفع]] -> 530 | L17: =Table134895[[#This Row],[ ألأيجار]]+Table134895[[#This Row],[ماء]] -> 6360 | N17: 6360 | O17: 106 | P17: نرول حقي رحمن | Q17: 12
A18: c | D18: =IF(Table134895[[#This Row],[ تاريخ الانتهاء]]<$B$4,$B$4-Table134895[[#This Row],[ تاريخ الانتهاء]],0) -> 43185 | F18: =IF(Table134895[[#This Row],[عدد أيام تأخير]]>0,Table134895[[#This Row],[عدد أيام تأخير]]*Table134895[[#This Row],[ايجار يومي]],0) -> 0 | H18: =Table134895[[#This Row],[الإجمالي]]/360 -> 0 | J18: =Table134895[[#This Row],[الإجمالي]]-Table134895[[#This Row],[المطلوب]] -> 0 | K18: =(Table134895[[#This Row],[الإجمالي]]/$Q$3)*Table134895[[#This Row],[ طريقة الدفع]] -> 0 | L18: =Table134895[[#This Row],[ ألأيجار]]+Table134895[[#This Row],[ماء]] -> 0 | O18: 107 | P18: فاضي | Q18: 13
A19: B | B19: 300 | D19: =IF(Table134895[[#This Row],[ تاريخ الانتهاء]]<$B$4,$B$4-Table134895[[#This Row],[ تاريخ الانتهاء]],0) -> 0 | F19: =IF(Table134895[[#This Row],[عدد أيام تأخير]]>0,Table134895[[#This Row],[عدد أيام تأخير]]*Table134895[[#This Row],[ايجار يومي]],0) -> 0 | G19: 2018-04-01 | H19: =Table134895[[#This Row],[الإجمالي]]/360 -> 15 | I19: 3 | J19: =Table134895[[#This Row],[الإجمالي]]-Table134895[[#This Row],[المطلوب]] -> 4050 | K19: =(Table134895[[#This Row],[الإجمالي]]/$Q$3)*Table134895[[#This Row],[ طريقة الدفع]] -> 1350 | L19: =Table134895[[#This Row],[ ألأيجار]]+Table134895[[#This Row],[ماء]] -> 5400 | N19: 5400 | O19: 201 | P19: مايش كومار غوبتا | Q19: 14
A20: c | D20: =IF(Table134895[[#This Row],[ تاريخ الانتهاء]]<$B$4,$B$4-Table134895[[#This Row],[ تاريخ الانتهاء]],0) -> 43185 | F20: =IF(Table134895[[#This Row],[عدد أيام تأخير]]>0,Table134895[[#This Row],[عدد أيام تأخير]]*Table134895[[#This Row],[ايجار يومي]],0) -> 762935 | H20: =Table134895[[#This Row],[الإجمالي]]/360 -> 17.66666667 | I20: 1 | J20: =Table134895[[#This Row],[الإجمالي]]-Table134895[[#This Row],[المطلوب]] -> 5830 | K20: =(Table134895[[#This Row],[الإجمالي]]/$Q$3)*Table134895[[#This Row],[ طريقة الدفع]] -> 530 | L20: =Table134895[[#This Row],[ ألأيجار]]+Table134895[[#This Row],[ماء]] -> 6360 | N20: 6360 | O20: 202 | P20: فاضي | Q20: 15
A21: A | B21: بدون تأمين | D21: =IF(Table134895[[#This Row],[ تاريخ الانتهاء]]<$B$4,$B$4-Table134895[[#This Row],[ تاريخ الانتهاء]],0) -> 156 | F21: =IF(Table134895[[#This Row],[عدد أيام تأخير]]>0,Table134895[[#This Row],[عدد أيام تأخير]]*Table134895[[#This Row],[ايجار يومي]],0) -> 3536 | G21: 2017-10-21 | H21: =Table134895[[#This Row],[الإجمالي]]/360 -> 22.66666667 | I21: 1 | J21: =Table134895[[#This Row],[الإجمالي]]-Table134895[[#This Row],[المطلوب]] -> 7480 | K21: =(Table134895[[#This Row],[الإجمالي]]/$Q$3)*Table134895[[#This Row],[ طريقة الدفع]] -> 680 | L21: =Table134895[[#This Row],[ ألأيجار]]+Table134895[[#This Row],[ماء]] -> 8160 | N21: 8160 | O21: 203 | P21: ارفد فاندشال ابراهيم كنومال | Q21: 16
A22: c | D22: =IF(Table134895[[#This Row],[ تاريخ الانتهاء]]<$B$4,$B$4-Table134895[[#This Row],[ تاريخ الانتهاء]],0) -> 43185 | F22: =IF(Table134895[[#This Row],[عدد أيام تأخير]]>0,Table134895[[#This Row],[عدد أيام تأخير]]*Table134895[[#This Row],[ايجار يومي]],0) -> 0 | H22: =Table134895[[#This Row],[الإجمالي]]/360 -> 0 | J22: =Table134895[[#This Row],[الإجمالي]]-Table134895[[#This Row],[المطلوب]] -> 0 | K22: =(Table134895[[#This Row],[الإجمالي]]/$Q$3)*Table134895[[#This Row],[ طريقة الدفع]] -> 0 | L22: =Table134895[[#This Row],[ ألأيجار]]+Table134895[[#This Row],[ماء]] -> 0 | O22: 204 | P22: فاضي | Q22: 17
A23: c | D23: =IF(Table134895[[#This Row],[ تاريخ الانتهاء]]<$B$4,$B$4-Table134895[[#This Row],[ تاريخ الانتهاء]],0) -> 43185 | F23: =IF(Table134895[[#This Row],[عدد أيام تأخير]]>0,Table134895[[#This Row],[عدد أيام تأخير]]*Table134895[[#This Row],[ايجار يومي]],0) -> 0 | H23: =Table134895[[#This Row],[الإجمالي]]/360 -> 0 | J23: =Table134895[[#This Row],[الإجمالي]]-Table134895[[#This Row],[المطلوب]] -> 0 | K23: =(Table134895[[#This Row],[الإجمالي]]/$Q$3)*Table134895[[#This Row],[ طريقة الدفع]] -> 0 | L23: =Table134895[[#This Row],[ ألأيجار]]+Table134895[[#This Row],[ماء]] -> 0 | O23: 205 | P23: فاضي | Q23: 18
A24: B | B24: بدون تأمين | D24: =IF(Table134895[[#This Row],[ تاريخ الانتهاء]]<$B$4,$B$4-Table134895[[#This Row],[ تاريخ الانتهاء]],0) -> 0 | F24: =IF(Table134895[[#This Row],[عدد أيام تأخير]]>0,Table134895[[#This Row],[عدد أيام تأخير]]*Table134895[[#This Row],[ايجار يومي]],0) -> 0 | G24: 2018-03-26 | H24: =Table134895[[#This Row],[الإجمالي]]/360 -> 17.66666667 | I24: 1 | J24: =Table134895[[#This Row],[الإجمالي]]-Table134895[[#This Row],[المطلوب]] -> 5830 | K24: =(Table134895[[#This Row],[الإجمالي]]/$Q$3)*Table134895[[#This Row],[ طريقة الدفع]] -> 530 | L24: =Table134895[[#This Row],[ ألأيجار]]+Table134895[[#This Row],[ماء]] -> 6360 | N24: 6360 | O24: 206 | P24: عامر سلام محمد عبدالسلام | Q24: 19
A25: c | D25: =IF(Table134895[[#This Row],[ تاريخ الانتهاء]]<$B$4,$B$4-Table134895[[#This Row],[ تاريخ الانتهاء]],0) -> 43185 | F25: =IF(Table134895[[#This Row],[عدد أيام تأخير]]>0,Table134895[[#This Row],[عدد أيام تأخير]]*Table134895[[#This Row],[ايجار يومي]],0) -> 0 | H25: =Table134895[[#This Row],[الإجمالي]]/360 -> 0 | J25: =Table134895[[#This Row],[الإجمالي]]-Table134895[[#This Row],[المطلوب]] -> 0 | K25: =(Table134895[[#This Row],[الإجمالي]]/$Q$3)*Table134895[[#This Row],[ طريقة الدفع]] -> 0 | L25: =Table134895[[#This Row],[ ألأيجار]]+Table134895[[#This Row],[ماء]] -> 0 | O25: 207 | P25: فاضي | Q25: 20
A26: B | B26: 200 | D26: =IF(Table134895[[#This Row],[ تاريخ الانتهاء]]<$B$4,$B$4-Table134895[[#This Row],[ تاريخ الانتهاء]],0) -> 0 | F26: =IF(Table134895[[#This Row],[عدد أيام تأخير]]>0,Table134895[[#This Row],[عدد أيام تأخير]]*Table134895[[#This Row],[ايجار يومي]],0) -> 0 | G26: 2018-04-01 | H26: =Table134895[[#This Row],[الإجمالي]]/360 -> 15 | I26: 1 | J26: =Table134895[[#This Row],[الإجمالي]]-Table134895[[#This Row],[المطلوب]] -> 4950 | K26: =(Table134895[[#This Row],[الإجمالي]]/$Q$3)*Table134895[[#This Row],[ طريقة الدفع]] -> 450 | L26: =Table134895[[#This Row],[ ألأيجار]]+Table134895[[#This Row],[ماء]] -> 5400 | N26: 5400 | O26: 301 | P26: زيشان حافيظ الله | Q26: 21
A27: c | D27: =IF(Table134895[[#This Row],[ تاريخ الانتهاء]]<$B$4,$B$4-Table134895[[#This Row],[ تاريخ الانتهاء]],0) -> 43185 | F27: =IF(Table134895[[#This Row],[عدد أيام تأخير]]>0,Table134895[[#This Row],[عدد أيام تأخير]]*Table134895[[#This Row],[ايجار يومي]],0) -> 0 | H27: =Table134895[[#This Row],[الإجمالي]]/360 -> 0 | J27: =Table134895[[#This Row],[الإجمالي]]-Table134895[[#This Row],[المطلوب]] -> 0 | K27: =(Table134895[[#This Row],[الإجمالي]]/$Q$3)*Table134895[[#This Row],[ طريقة الدفع]] -> 0 | L27: =Table134895[[#This Row],[ ألأيجار]]+Table134895[[#This Row],[ماء]] -> 0 | O27: 302 | P27: فاضي | Q27: 22
A28: B | B28: 300 | D28: =IF(Table134895[[#This Row],[ تاريخ الانتهاء]]<$B$4,$B$4-Table134895[[#This Row],[ تاريخ الانتهاء]],0) -> 0 | F28: =IF(Table134895[[#This Row],[عدد أيام تأخير]]>0,Table134895[[#This Row],[عدد أيام تأخير]]*Table134895[[#This Row],[ايجار يومي]],0) -> 0 | G28: 2018-04-01 | H28: =Table134895[[#This Row],[الإجمالي]]/360 -> 17.66666667 | I28: 1 | J28: =Table134895[[#This Row],[الإجمالي]]-Table134895[[#This Row],[المطلوب]] -> 5830 | K28: =(Table134895[[#This Row],[الإجمالي]]/$Q$3)*Table134895[[#This Row],[ طريقة الدفع]] -> 530 | L28: =Table134895[[#This Row],[ ألأيجار]]+Table134895[[#This Row],[ماء]] -> 6360 | N28: 6360 | O28: 303 | P28: رنجان بالا | Q28: 23
A29: c | D29: =IF(Table134895[[#This Row],[ تاريخ الانتهاء]]<$B$4,$B$4-Table134895[[#This Row],[ تاريخ الانتهاء]],0) -> 43185 | F29: =IF(Table134895[[#This Row],[عدد أيام تأخير]]>0,Table134895[[#This Row],[عدد أيام تأخير]]*Table134895[[#This Row],[ايجار يومي]],0) -> 0 | H29: =Table134895[[#This Row],[الإجمالي]]/360 -> 0 | J29: =Table134895[[#This Row],[الإجمالي]]-Table134895[[#This Row],[المطلوب]] -> 0 | K29: =(Table134895[[#This Row],[الإجمالي]]/$Q$3)*Table134895[[#This Row],[ طريقة الدفع]] -> 0 | L29: =Table134895[[#This Row],[ ألأيجار]]+Table134895[[#This Row],[ماء]] -> 0 | O29: 304 | P29: فاضي | Q29: 24
A30: A | B30: بدون تأمين | D30: =IF(Table134895[[#This Row],[ تاريخ الانتهاء]]<$B$4,$B$4-Table134895[[#This Row],[ تاريخ الانتهاء]],0) -> 8 | F30: =IF(Table134895[[#This Row],[عدد أيام تأخير]]>0,Table134895[[#This Row],[عدد أيام تأخير]]*Table134895[[#This Row],[ايجار يومي]],0) -> 213.3333333 | G30: 2018-03-18 | H30: =Table134895[[#This Row],[الإجمالي]]/360 -> 26.66666667 | I30: 1 | J30: =Table134895[[#This Row],[الإجمالي]]-Table134895[[#This Row],[المطلوب]] -> 8800 | K30: =(Table134895[[#This Row],[الإجمالي]]/$Q$3)*Table134895[[#This Row],[ طريقة الدفع]] -> 800 | L30: =Table134895[[#This Row],[ ألأيجار]]+Table134895[[#This Row],[ماء]] -> 9600 | N30: 9600 | O30: 305 | P30: رشيد محمود محمد | Q30: 25
A31: c | D31: =IF(Table134895[[#This Row],[ تاريخ الانتهاء]]<$B$4,$B$4-Table134895[[#This Row],[ تاريخ الانتهاء]],0) -> 43185 | F31: =IF(Table134895[[#This Row],[عدد أيام تأخير]]>0,Table134895[[#This Row],[عدد أيام تأخير]]*Table134895[[#This Row],[ايجار يومي]],0) -> 0 | H31: =Table134895[[#This Row],[الإجمالي]]/360 -> 0 | J31: =Table134895[[#This Row],[الإجمالي]]-Table134895[[#This Row],[المطلوب]] -> 0 | K31: =(Table134895[[#This Row],[الإجمالي]]/$Q$3)*Table134895[[#This Row],[ طريقة الدفع]] -> 0 | L31: =Table134895[[#This Row],[ ألأيجار]]+Table134895[[#This Row],[ماء]] -> 0 | O31: 306 | P31: فاضي | Q31: 26
K32: =SUBTOTAL(109,Table134895[المطلوب]) -> 9920 | L32: =SUBTOTAL(109,Table134895[الإجمالي]) -> 86520 | M32: =SUBTOTAL(109,Table134895[ماء]) -> 0 | N32: =SUBTOTAL(109,Table134895[[ ألأيجار]]) -> 86520

Sheet الحزام
A3: A | B3: =TODAY() -> 2018-03-26 | C3: تاريخ الهجري | P3: الشقق الفارغه | Q3: 12
A4: A | B4: =TODAY() -> 2018-03-26 | C4: الموافق | F4: 8 | J4: جوال= | P4: المحلات الفارغه
A5: =IF(D5>0,"A","B") -> A | B5: تأمين | C5: رقم الجوال | D5: عدد أيام تأخير | E5: ملاحظات | F5: المدفوع | G5: تاريخ الانتهاء | H5: تاريخ ابتداءالايجار | I5: طريقة الدفع | J5: الباقي | K5: المطلوب | L5: الإجمالي | M5: ماء | N5: ألأيجار | O5: رقم الشقة | P5: اسم المستأجر | Q5: الرقم
A6: =IF(D6<1000,IF(D6>0,"A","B"),"c") -> c | D6: =IF(Table1348956[[#This Row],[ تاريخ الانتهاء]]<$B$4,$B$4-Table1348956[[#This Row],[ تاريخ الانتهاء]],0) -> 43185 | I6: 6 | J6: =Table1348956[[#This Row],[الإجمالي]]-Table1348956[[#This Row],[المطلوب]] -> 0 | K6: =(Table1348956[[#This Row],[الإجمالي]]/$Q$3)*Table1348956[[#This Row],[ طريقة الدفع]] -> 0 | L6: =Table1348956[[#This Row],[ ألأيجار]]+Table1348956[[#This Row],[ماء]] -> 0 | O6: محل رقم 1 | P6: فاضي | Q6: 1
A7: =IF(D7<1000,IF(D7>0,"A","B"),"c") -> c | D7: =IF(Table1348956[[#This Row],[ تاريخ الانتهاء]]<$B$4,$B$4-Table1348956[[#This Row],[ تاريخ الانتهاء]],0) -> 43185 | I7: 6 | J7: =Table1348956[[#This Row],[الإجمالي]]-Table1348956[[#This Row],[المطلوب]] -> 2500 | K7: =(Table1348956[[#This Row],[الإجمالي]]/$Q$3)*Table1348956[[#This Row],[ طريقة الدفع]] -> 2500 | L7: =Table1348956[[#This Row],[ ألأيجار]]+Table1348956[[#This Row],[ماء]] -> 5000 | N7: 5000 | O7: محل رقم 2 | P7: شيخه ناصر قاسي القحطاني | Q7: =Q6+1 -> 2
A8: c | D8: =IF(Table1348956[[#This Row],[ تاريخ الانتهاء]]<$B$4,$B$4-Table1348956[[#This Row],[ تاريخ الانتهاء]],0) -> 43185 | I8: 6 | J8: =Table1348956[[#This Row],[الإجمالي]]-Table1348956[[#This Row],[المطلوب]] -> 20000 | K8: =(Table1348956[[#This Row],[الإجمالي]]/$Q$3)*Table1348956[[#This Row],[ طريقة الدفع]] -> 20000 | L8: =Table1348956[[#This Row],[ ألأيجار]]+Table1348956[[#This Row],[ماء]] -> 40000 | N8: 40000 | O8: محل رقم 3 | P8: عماد احمد صالح الغامدي | Q8: =Q7+1 -> 3
A9: c | D9: =IF(Table1348956[[#This Row],[ تاريخ الانتهاء]]<$B$4,$B$4-Table1348956[[#This Row],[ تاريخ الانتهاء]],0) -> 43185 | H9: 2017-12-26 | I9: 6 | J9: =Table1348956[[#This Row],[الإجمالي]]-Table1348956[[#This Row],[المطلوب]] -> 25000 | K9: =(Table1348956[[#This Row],[الإجمالي]]/$Q$3)*Table1348956[[#This Row],[ طريقة الدفع]] -> 25000 | L9: =Table1348956[[#This Row],[ ألأيجار]]+Table1348956[[#This Row],[ماء]] -> 50000 | N9: 50000 | O9: محل رقم 4 | P9: ماهر بن عبدالعزيز بن تاصر العقيل | Q9: 4
A10: c | D10: =IF(Table1348956[[#This Row],[ تاريخ الانتهاء]]<$B$4,$B$4-Table1348956[[#This Row],[ تاريخ الانتهاء]],0) -> 43185 | I10: 6 | J10: =Table1348956[[#This Row],[الإجمالي]]-Table1348956[[#This Row],[المطلوب]] -> 0 | K10: =(Table1348956[[#This Row],[الإجمالي]]/$Q$3)*Table1348956[[#This Row],[ طريقة الدفع]] -> 0 | L10: =Table1348956[[#This Row],[ ألأيجار]]+Table1348956[[#This Row],[ماء]] -> 0 | O10: محل رقم 5 | P10: فاضي | Q10: 5
A11: c | D11: =IF(Table1348956[[#This Row],[ تاريخ الانتهاء]]<$B$4,$B$4-Table1348956[[#This Row],[ تاريخ الانتهاء]],0) -> 43185 | I11: 6 | J11: =Table1348956[[#This Row],[الإجمالي]]-Table1348956[[#This Row],[المطلوب]] -> 22500 | K11: =(Table1348956[[#This Row],[الإجمالي]]/$Q$3)*Table1348956[[#This Row],[ طريقة الدفع]] -> 22500 | L11: =Table1348956[[#This Row],[ ألأيجار]]+Table1348956[[#This Row],[ماء]] -> 45000 | N11: 45000 | O11: محل رقم 6 | P11: زياد بن عبدالعزيزبن عبجالله الملحم | Q11: 6
A12: B | D12: =IF(Table1348956[[#This Row],[ تاريخ الانتهاء]]<$B$4,$B$4-Table1348956[[#This Row],[ تاريخ الانتهاء]],0) -> 0 | G12: 2018-08-12 | H12: 2018-02-17 | I12: 6 | J12: =Table1348956[[#This Row],[الإجمالي]]-Table1348956[[#This Row],[المطلوب]] -> 35000 | K12: =(Table1348956[[#This Row],[الإجمالي]]/$Q$3)*Table1348956[[#This Row],[ طريقة الدفع]] -> 35000 | L12: =Table1348956[[#This Row],[ ألأيجار]]+Table1348956[[#This Row],[ماء]] -> 70000 | N12: 70000 | O12: محل رقم 7 | P12: زياد بن عبدالعزيزبن عبجالله الملحم | Q12: 7
A13: c | D13: =IF(Table1348956[[#This Row],[ تاريخ الانتهاء]]<$B$4,$B$4-Table1348956[[#This Row],[ تاريخ الانتهاء]],0) -> 43185 | I13: 6 | J13: =Table1348956[[#This Row],[الإجمالي]]-Table1348956[[#This Row],[المطلوب]] -> 0 | K13: =(Table1348956[[#This Row],[الإجمالي]]/$Q$3)*Table1348956[[#This Row],[ طريقة الدفع]] -> 0 | L13: =Table1348956[[#This Row],[ ألأيجار]]+Table1348956[[#This Row],[ماء]] -> 0 | O13: محل رقم 8 | P13: عبير بنت عبدالخالق سعيد الغامدي | Q13: 8
A14: c | D14: =IF(Table1348956[[#This Row],[ تاريخ الانتهاء]]<$B$4,$B$4-Table1348956[[#This Row],[ تاريخ الانتهاء]],0) -> 43185 | I14: 6 | J14: =Table1348956[[#This Row],[الإجمالي]]-Table1348956[[#This Row],[المطلوب]] -> 0 | K14: =(Table1348956[[#This Row],[الإجمالي]]/$Q$3)*Table1348956[[#This Row],[ طريقة الدفع]] -> 0 | L14: =Table1348956[[#This Row],[ ألأيجار]]+Table1348956[[#This Row],[ماء]] -> 0 | O14: محل رقم 9 | P14: عبير بنت عبدالخالق سعيد الغامدي | Q14: 9
A15: c | D15: =IF(Table1348956[[#This Row],[ تاريخ الانتهاء]]<$B$4,$B$4-Table1348956[[#This Row],[ تاريخ الانتهاء]],0) -> 43185 | I15: 6 | J15: =Table1348956[[#This Row],[الإجمالي]]-Table1348956[[#This Row],[المطلوب]] -> 0 | K15: =(Table1348956[[#This Row],[الإجمالي]]/$Q$3)*Table1348956[[#This Row],[ طريقة الدفع]] -> 0 | L15: =Table1348956[[#This Row],[ ألأيجار]]+Table1348956[[#This Row],[ماء]] -> 0 | O15: محل رقم 10 | P15: عبير بنت عبدالخالق سعيد الغامدي | Q15: 10
A16: c | D16: =IF(Table1348956[[#This Row],[ تاريخ الانتهاء]]<$B$4,$B$4-Table1348956[[#This Row],[ تاريخ الانتهاء]],0) -> 43185 | I16: 6 | J16: =Table1348956[[#This Row],[الإجمالي]]-Table1348956[[#This Row],[المطلوب]] -> 0 | K16: =(Table1348956[[#This Row],[الإجمالي]]/$Q$3)*Table1348956[[#This Row],[ طريقة الدفع]] -> 0 | L16: =Table1348956[[#This Row],[ ألأيجار]]+Table1348956[[#This Row],[ماء]] -> 0 | O16: محل رقم 11 | P16: عبير بنت عبدالخالق سعيد الغامدي | Q16: 11
A17: c | D17: =IF(Table1348956[[#This Row],[ تاريخ الانتهاء]]<$B$4,$B$4-Table1348956[[#This Row],[ تاريخ الانتهاء]],0) -> 43185 | I17: 6 | J17: =Table1348956[[#This Row],[الإجمالي]]-Table1348956[[#This Row],[المطلوب]] -> 0 | K17: =(Table1348956[[#This Row],[الإجمالي]]/$Q$3)*Table1348956[[#This Row],[ طريقة الدفع]] -> 0 | L17: =Table1348956[[#This Row],[ ألأيجار]]+Table1348956[[#This Row],[ماء]] -> 0
A18: B | K18: =SUBTOTAL(109,Table1348956[المطلوب]) -> 105000 | L18: =SUBTOTAL(109,Table1348956[الإجمالي]) -> 210000 | M18: =SUBTOTAL(109,Table1348956[ماء]) -> 0 | N18: =SUBTOTAL(109,Table1348956[[ ألأيجار]]) -> 210000
A19: B
A20: B
A21: B
A22: B
A23: B
A24: B
A25: B
A26: B
A27: B
A28: B
A29: B
A30: B
A31: B
A32: B
A33: B
A34: B
A35: B

Sheet ناصر
A3: A | B3: =TODAY() -> 2018-03-26 | C3: تاريخ الهجري | P3: الشقق الفارغه | Q3: 12
A4: A | B4: =TODAY() -> 2018-03-26 | C4: الموافق | F4: 9 | J4: جوال= | P4: المحلات الفارغه
A5: =IF(D5>0,"A","B") -> A | B5: تأمين | C5: رقم الجوال | D5: عدد أيام تأخير | E5: ملاحظات | F5: المطلوب دفعه | G5: تاريخ الانتهاء | H5: تاريخ ابتداءالايجار | I5: طريقة الدفع | J5: الباقي | K5: المطلوب | L5: الإجمالي | M5: ماء | N5: ألأيجار | O5: رقم الشقة | P5: اسم المستأجر | Q5: الرقم
A6: =IF(D6<1000,IF(D6>0,"A","B"),"c") -> B | B6: 1000 | D6: =IF(Table13489567[[#This Row],[ تاريخ الانتهاء]]<$B$4,$B$4-Table13489567[[#This Row],[ تاريخ الانتهاء]],0) -> 0 | G6: 2018-08-06 | I6: 6 | J6: =Table13489567[[#This Row],[الإجمالي]]-Table13489567[[#This Row],[المطلوب]] -> 9500 | K6: =(Table13489567[[#This Row],[الإجمالي]]/$Q$3)*Table13489567[[#This Row],[ طريقة الدفع]] -> 9500 | L6: =Table13489567[[#This Row],[ ألأيجار]]+Table13489567[[#This Row],[ماء]] -> 19000 | N6: 19000 | O6: 1 | P6: سيرش شندرا بحرة | Q6: 1
A7: =IF(D7<1000,IF(D7>0,"A","B"),"c") -> A | B7: 1000 | D7: =IF(Table13489567[[#This Row],[ تاريخ الانتهاء]]<$B$4,$B$4-Table13489567[[#This Row],[ تاريخ الانتهاء]],0) -> 7 | G7: 2018-03-19 | I7: 6 | J7: =Table13489567[[#This Row],[الإجمالي]]-Table13489567[[#This Row],[المطلوب]] -> 9500 | K7: =(Table13489567[[#This Row],[الإجمالي]]/$Q$3)*Table13489567[[#This Row],[ طريقة الدفع]] -> 9500 | L7: =Table13489567[[#This Row],[ ألأيجار]]+Table13489567[[#This Row],[ماء]] -> 19000 | N7: 19000 | O7: 2 | P7: فينكاتيسوارلو فيماساني | Q7: =Q6+1 -> 2
A8: B | B8: 1000 | D8: =IF(Table13489567[[#This Row],[ تاريخ الانتهاء]]<$B$4,$B$4-Table13489567[[#This Row],[ تاريخ الانتهاء]],0) -> 0 | G8: 2019-02-07 | I8: 12 | J8: =Table13489567[[#This Row],[الإجمالي]]-Table13489567[[#This Row],[المطلوب]] -> 0 | K8: =(Table13489567[[#This Row],[الإجمالي]]/$Q$3)*Table13489567[[#This Row],[ طريقة الدفع]] -> 18600 | L8: =Table13489567[[#This Row],[ ألأيجار]]+Table13489567[[#This Row],[ماء]] -> 18600 | M8: 600 | N8: 18000 | O8: 3 | P8: نيليش كيشور ايلاني | Q8: =Q7+1 -> 3
A9: c | D9: =IF(Table13489567[[#This Row],[ تاريخ الانتهاء]]<$B$4,$B$4-Table13489567[[#This Row],[ تاريخ الانتهاء]],0) -> 43185 | I9: 6 | J9: =Table13489567[[#This Row],[الإجمالي]]-Table13489567[[#This Row],[المطلوب]] -> 8750 | K9: =(Table13489567[[#This Row],[الإجمالي]]/$Q$3)*Table13489567[[#This Row],[ طريقة الدفع]] -> 8750 | L9: =Table13489567[[#This Row],[ ألأيجار]]+Table13489567[[#This Row],[ماء]] -> 17500 | M9: 500 | N9: 17000 | O9: 4 | P9: فاضي | Q9: 4
A10: B | B10: 1000 | D10: =IF(Table13489567[[#This Row],[ تاريخ الانتهاء]]<$B$4,$B$4-Table13489567[[#This Row],[ تاريخ الانتهاء]],0) -> 0 | G10: 2019-03-21 | I10: 6 | J10: =Table13489567[[#This Row],[الإجمالي]]-Table13489567[[#This Row],[المطلوب]] -> 9500 | K10: =(Table13489567[[#This Row],[الإجمالي]]/$Q$3)*Table13489567[[#This Row],[ طريقة الدفع]] -> 9500 | L10: =Table13489567[[#This Row],[ ألأيجار]]+Table13489567[[#This Row],[ماء]] -> 19000 | N10: 19000 | O10: 5 | P10: نيهرو سيغالي نيتاجي | Q10: 5
A11: B | B11: 1000 | D11: =IF(Table13489567[[#This Row],[ تاريخ الانتهاء]]<$B$4,$B$4-Table13489567[[#This Row],[ تاريخ الانتهاء]],0) -> 0 | G11: 2018-09-13 | J11: =Table13489567[[#This Row],[الإجمالي]]-Table13489567[[#This Row],[المطلوب]] -> 19000 | K11: =(Table13489567[[#This Row],[الإجمالي]]/$Q$3)*Table13489567[[#This Row],[ طريقة الدفع]] -> 0 | L11: =Table13489567[[#This Row],[ ألأيجار]]+Table13489567[[#This Row],[ماء]] -> 19000 | N11: 19000 | O11: 6 | P11: شاندرا سكار | Q11: 6
A12: B | B12: 1000 | D12: =IF(Table13489567[[#This Row],[ تاريخ الانتهاء]]<$B$4,$B$4-Table13489567[[#This Row],[ تاريخ الانتهاء]],0) -> 0 | G12: 2018-08-05 | I12: 6 | J12: =Table13489567[[#This Row],[الإجمالي]]-Table13489567[[#This Row],[المطلوب]] -> 9500 | K12: =(Table13489567[[#This Row],[الإجمالي]]/$Q$3)*Table13489567[[#This Row],[ طريقة الدفع]] -> 9500 | L12: =Table13489567[[#This Row],[ ألأيجار]]+Table13489567[[#This Row],[ماء]] -> 19000 | N12: 19000 | O12: 7 | P12: جيش غوبتا سومش | Q12: 7
A13: c | D13: =IF(Table13489567[[#This Row],[ تاريخ الانتهاء]]<$B$4,$B$4-Table13489567[[#This Row],[ تاريخ الانتهاء]],0) -> 43185 | J13: =Table13489567[[#This Row],[الإجمالي]]-Table13489567[[#This Row],[المطلوب]] -> 500 | K13: =(Table13489567[[#This Row],[الإجمالي]]/$Q$3)*Table13489567[[#This Row],[ طريقة الدفع]] -> 0 | L13: =Table13489567[[#This Row],[ ألأيجار]]+Table13489567[[#This Row],[ماء]] -> 500 | M13: 500 | O13: 8 | P13: فاضي | Q13: 8
A14: B | B14: 1000 | D14: =IF(Table13489567[[#This Row],[ تاريخ الانتهاء]]<$B$4,$B$4-Table13489567[[#This Row],[ تاريخ الانتهاء]],0) -> 0 | G14: 2018-09-21 | I14: 6 | J14: =Table13489567[[#This Row],[الإجمالي]]-Table13489567[[#This Row],[المطلوب]] -> 10750 | K14: =(Table13489567[[#This Row],[الإجمالي]]/$Q$3)*Table13489567[[#This Row],[ طريقة الدفع]] -> 10750 | L14: =Table13489567[[#This Row],[ ألأيجار]]+Table13489567[[#This Row],[ماء]] -> 21500 | M14: 1500 | N14: 20000 | O14: 9 | P14: ابراهيم محمد الشافعي | Q14: 9
A15: c | D15: =IF(Table13489567[[#This Row],[ تاريخ الانتهاء]]<$B$4,$B$4-Table13489567[[#This Row],[ تاريخ الانتهاء]],0) -> 43185 | J15: =Table13489567[[#This Row],[الإجمالي]]-Table13489567[[#This Row],[المطلوب]] -> 0 | K15: =(Table13489567[[#This Row],[الإجمالي]]/$Q$3)*Table13489567[[#This Row],[ طريقة الدفع]] -> 0 | L15: =Table13489567[[#This Row],[ ألأيجار]]+Table13489567[[#This Row],[ماء]] -> 0 | O15: 10 | P15: فاضي | Q15: 10
A16: c | D16: =IF(Table13489567[[#This Row],[ تاريخ الانتهاء]]<$B$4,$B$4-Table13489567[[#This Row],[ تاريخ الانتهاء]],0) -> 43185 | J16: =Table13489567[[#This Row],[الإجمالي]]-Table13489567[[#This Row],[المطلوب]] -> 0 | K16: =(Table13489567[[#This Row],[الإجمالي]]/$Q$3)*Table13489567[[#This Row],[ طريقة الدفع]] -> 0 | L16: =Table13489567[[#This Row],[ ألأيجار]]+Table13489567[[#This Row],[ماء]] -> 0 | O16: 11 | P16: فاضي | Q16: 11
A17: B | B17: بدون | D17: =IF(Table13489567[[#This Row],[ تاريخ الانتهاء]]<$B$4,$B$4-Table13489567[[#This Row],[ تاريخ الانتهاء]],0) -> 0 | G17: 2018-04-21 | J17: =Table13489567[[#This Row],[الإجمالي]]-Table13489567[[#This Row],[المطلوب]] -> 20500 | K17: =(Table13489567[[#This Row],[الإجمالي]]/$Q$3)*Table13489567[[#This Row],[ طريقة الدفع]] -> 0 | L17: =Table13489567[[#This Row],[ ألأيجار]]+Table13489567[[#This Row],[ماء]] -> 20500 | M17: 500 | N17: 20000 | O17: 12 | P17: ناجي مسعد احمد المضرحي | Q17: 12
A18: A | B18: بدون | D18: =IF(Table13489567[[#This Row],[ تاريخ الانتهاء]]<$B$4,$B$4-Table13489567[[#This Row],[ تاريخ الانتهاء]],0) -> 67 | G18: 2018-01-18 | I18: 6 | J18: =Table13489567[[#This Row],[الإجمالي]]-Table13489567[[#This Row],[المطلوب]] -> 20000 | K18: =(Table13489567[[#This Row],[الإجمالي]]/$Q$3)*Table13489567[[#This Row],[ طريقة الدفع]] -> 20000 | L18: =Table13489567[[#This Row],[ ألأيجار]]+Table13489567[[#This Row],[ماء]] -> 40000 | M18: 0 | N18: 40000 | O18: M1 | P18: محمودعبدالله الحجازي | Q18: 13
A19: c | D19: =IF(Table13489567[[#This Row],[ تاريخ الانتهاء]]<$B$4,$B$4-Table13489567[[#This Row],[ تاريخ الانتهاء]],0) -> 43185 | J19: =Table13489567[[#This Row],[الإجمالي]]-Table13489567[[#This Row],[المطلوب]] -> 0 | K19: =(Table13489567[[#This Row],[الإجمالي]]/$Q$3)*Table13489567[[#This Row],[ طريقة الدفع]] -> 0 | L19: =Table13489567[[#This Row],[ ألأيجار]]+Table13489567[[#This Row],[ماء]] -> 0 | O19: M2 | P19: فاضي | Q19: 14
A20: c | D20: =IF(Table13489567[[#This Row],[ تاريخ الانتهاء]]<$B$4,$B$4-Table13489567[[#This Row],[ تاريخ الانتهاء]],0) -> 43185 | J20: =Table13489567[[#This Row],[الإجمالي]]-Table13489567[[#This Row],[المطلوب]] -> 0 | K20: =(Table13489567[[#This Row],[الإجمالي]]/$Q$3)*Table13489567[[#This Row],[ طريقة الدفع]] -> 0 | L20: =Table13489567[[#This Row],[ ألأيجار]]+Table13489567[[#This Row],[ماء]] -> 0 | O20: M3 | P20: فاضي | Q20: 15
A21: c | D21: =IF(Table13489567[[#This Row],[ تاريخ الانتهاء]]<$B$4,$B$4-Table13489567[[#This Row],[ تاريخ الانتهاء]],0) -> 43185 | J21: =Table13489567[[#This Row],[الإجمالي]]-Table13489567[[#This Row],[المطلوب]] -> 0 | K21: =(Table13489567[[#This Row],[الإجمالي]]/$Q$3)*Table13489567[[#This Row],[ طريقة الدفع]] -> 0 | L21: =Table13489567[[#This Row],[ ألأيجار]]+Table13489567[[#This Row],[ماء]] -> 0 | O21: M4 | P21: فاضي | Q21: 16
A22: A | B22: بدون | D22: =IF(Table13489567[[#This Row],[ تاريخ الانتهاء]]<$B$4,$B$4-Table13489567[[#This Row],[ تاريخ الانتهاء]],0) -> 186 | G22: 2017-09-21 | I22: 6 | J22: =Table13489567[[#This Row],[الإجمالي]]-Table13489567[[#This Row],[المطلوب]] -> 17500 | K22: =(Table13489567[[#This Row],[الإجمالي]]/$Q$3)*Table13489567[[#This Row],[ طريقة الدفع]] -> 17500 | L22: =Table13489567[[#This Row],[ ألأيجار]]+Table13489567[[#This Row],[ماء]] -> 35000 | M22: 0 | N22: 35000 | O22: M5 | P22: أحمد محمد العميري | Q22: 17
A23: B | K23: =SUBTOTAL(109,Table13489567[المطلوب]) -> 113600 | L23: =SUBTOTAL(109,Table13489567[الإجمالي]) -> 248600 | M23: =SUBTOTAL(109,Table13489567[ماء]) -> 3600 | N23: =SUBTOTAL(109,Table13489567[[ ألأيجار]]) -> 245000
A24: B
A25: B
A26: B
A27: B
A28: B
A29: B
A30: B
A31: B
A32: B
A33: B
A34: B
A35: B

Sheet منوع
A3: A | B3: =TODAY() -> 2018-03-26 | C3: تاريخ الهجري | P3: الشقق الفارغه | Q3: 12
A4: A | B4: =TODAY() -> 2018-03-26 | C4: الموافق | F4: 10 | J4: جوال= | P4: المحلات الفارغه
A5: =IF(D5>0,"A","B") -> A | B5: تأمين | C5: رقم الجوال | D5: عدد أيام تأخير | E5: ملاحظات | F5: المدفوع | G5: تاريخ الانتهاء | H5: تاريخ ابتداءالايجار | I5: طريقة الدفع | J5: الباقي | K5: المطلوب | L5: الإجمالي | M5: ماء | N5: ألأيجار | O5: رقم الشقة | P5: اسم المستأجر | Q5: الرقم
A6: =IF(D6<1000,IF(D6>0,"A","B"),"c") -> B | D6: =IF(Table1348956711[[#This Row],[ تاريخ الانتهاء]]<$B$4,$B$4-Table1348956711[[#This Row],[ تاريخ الانتهاء]],0) -> 0 | G6: 2018-04-20 | H6: 2017-04-30 | J6: =Table1348956711[[#This Row],[الإجمالي]]-Table1348956711[[#This Row],[المطلوب]]-Table1348956711[[#This Row],[المدفوع]] -> 105000 | K6: =(Table1348956711[[#This Row],[الإجمالي]]/$Q$3)*Table1348956711[[#This Row],[ طريقة الدفع]] -> 0 | L6: =Table1348956711[[#This Row],[ ألأيجار]]+Table1348956711[[#This Row],[ماء]] -> 105000 | N6: 105000 | O6: شقة /ابوظبي | P6: محمد عنبر اردني | Q6: 1
A7: =IF(D7<1000,IF(D7>0,"A","B"),"c") -> A | D7: =IF(Table1348956711[[#This Row],[ تاريخ الانتهاء]]<$B$4,$B$4-Table1348956711[[#This Row],[ تاريخ الانتهاء]],0) -> 303 | G7: 2017-05-27 | H7: 2016-06-06 | J7: =Table1348956711[[#This Row],[الإجمالي]]-Table1348956711[[#This Row],[المطلوب]]-Table1348956711[[#This Row],[المدفوع]] -> 10000 | K7: =(Table1348956711[[#This Row],[الإجمالي]]/$Q$3)*Table1348956711[[#This Row],[ طريقة الدفع]] -> 0 | L7: =Table1348956711[[#This Row],[ ألأيجار]]+Table1348956711[[#This Row],[ماء]] -> 10000 | N7: 10000 | O7: قرطبة/2 | P7: عبدالرحمن عبدالرحيم السيد | Q7: =Q6+1 -> 2
A8: A | D8: =IF(Table1348956711[[#This Row],[ تاريخ الانتهاء]]<$B$4,$B$4-Table1348956711[[#This Row],[ تاريخ الانتهاء]],0) -> 142 | G8: 2017-11-04 | H8: 2016-11-15 | J8: =Table1348956711[[#This Row],[الإجمالي]]-Table1348956711[[#This Row],[المطلوب]]-Table1348956711[[#This Row],[المدفوع]] -> 20000 | K8: =(Table1348956711[[#This Row],[الإجمالي]]/$Q$3)*Table1348956711[[#This Row],[ طريقة الدفع]] -> 0 | L8: =Table1348956711[[#This Row],[ ألأيجار]]+Table1348956711[[#This Row],[ماء]] -> 20000 | N8: 20000 | O8: قرطبة/3 | P8: احمد عبدالرحيم السيد | Q8: =Q7+1 -> 3
A9: B | D9: =IF(Table1348956711[[#This Row],[ تاريخ الانتهاء]]<$B$4,$B$4-Table1348956711[[#This Row],[ تاريخ الانتهاء]],0) -> 0 | F9: 10000 | G9: 2019-02-06 | J9: =Table1348956711[[#This Row],[الإجمالي]]-Table1348956711[[#This Row],[المطلوب]]-Table1348956711[[#This Row],[المدفوع]] -> 0 | K9: =(Table1348956711[[#This Row],[الإجمالي]]/$Q$3)*Table1348956711[[#This Row],[ طريقة الدفع]] -> 0 | L9: =Table1348956711[[#This Row],[ ألأيجار]]+Table1348956711[[#This Row],[ماء]] -> 10000 | N9: 10000 | O9: قرطبة/4 | P9: محمد سليمان | Q9: 4
A10: c | D10: =IF(Table1348956711[[#This Row],[ تاريخ الانتهاء]]<$B$4,$B$4-Table1348956711[[#This Row],[ تاريخ الانتهاء]],0) -> 43185 | J10: =Table1348956711[[#This Row],[الإجمالي]]-Table1348956711[[#This Row],[المطلوب]]-Table1348956711[[#This Row],[المدفوع]] -> 0 | K10: =(Table1348956711[[#This Row],[الإجمالي]]/$Q$3)*Table1348956711[[#This Row],[ طريقة الدفع]] -> 0 | L10: =Table1348956711[[#This Row],[ ألأيجار]]+Table1348956711[[#This Row],[ماء]] -> 0 | O10: قرطبة/1 | P10: فاضي | Q10: 5
A11: A | D11: =IF(Table1348956711[[#This Row],[ تاريخ الانتهاء]]<$B$4,$B$4-Table1348956711[[#This Row],[ تاريخ الانتهاء]],0) -> 186 | G11: 2017-09-21 | H11: 2016-10-02 | J11: =Table1348956711[[#This Row],[الإجمالي]]-Table1348956711[[#This Row],[المطلوب]]-Table1348956711[[#This Row],[المدفوع]] -> 7000 | K11: =(Table1348956711[[#This Row],[الإجمالي]]/$Q$3)*Table1348956711[[#This Row],[ طريقة الدفع]] -> 0 | L11: =Table1348956711[[#This Row],[ ألأيجار]]+Table1348956711[[#This Row],[ماء]] -> 7000 | N11: 7000 | O11: سعي | P11: عبداللة عامر الخالدي | Q11: 6
A12: A | D12: =IF(Table1348956711[[#This Row],[ تاريخ الانتهاء]]<$B$4,$B$4-Table1348956711[[#This Row],[ تاريخ الانتهاء]],0) -> 186 | G12: 2017-09-21 | H12: 2017-03-29 | J12: =Table1348956711[[#This Row],[الإجمالي]]-Table1348956711[[#This Row],[المطلوب]]-Table1348956711[[#This Row],[المدفوع]] -> 20000 | K12: =(Table1348956711[[#This Row],[الإجمالي]]/$Q$3)*Table1348956711[[#This Row],[ طريقة الدفع]] -> 0 | L12: =Table1348956711[[#This Row],[ ألأيجار]]+Table1348956711[[#This Row],[ماء]] -> 20000 | N12: 20000 | O12: محلات | P12: محمد سليمان السيد | Q12: 7
A13: B | D13: =IF(Table1348956711[[#This Row],[ تاريخ الانتهاء]]<$B$4,$B$4-Table1348956711[[#This Row],[ تاريخ الانتهاء]],0) -> 0 | G13: 2018-06-15 | H13: 2017-12-19 | J13: =Table1348956711[[#This Row],[الإجمالي]]-Table1348956711[[#This Row],[المطلوب]]-Table1348956711[[#This Row],[المدفوع]] -> 280000 | K13: =(Table1348956711[[#This Row],[الإجمالي]]/$Q$3)*Table1348956711[[#This Row],[ طريقة الدفع]] -> 0 | L13: =Table1348956711[[#This Row],[ ألأيجار]]+Table1348956711[[#This Row],[ماء]] -> 280000 | M13: 280000 | O13: شقة تركيا /10 | P13: لولوة هزاع الدوسري | Q13: 8
A14: B | D14: =IF(Table1348956711[[#This Row],[ تاريخ الانتهاء]]<$B$4,$B$4-Table1348956711[[#This Row],[ تاريخ الانتهاء]],0) -> 0 | G14: 2018-06-15 | H14: 2017-12-19 | J14: =Table1348956711[[#This Row],[الإجمالي]]-Table1348956711[[#This Row],[المطلوب]]-Table1348956711[[#This Row],[المدفوع]] -> 230000 | K14: =(Table1348956711[[#This Row],[الإجمالي]]/$Q$3)*Table1348956711[[#This Row],[ طريقة الدفع]] -> 0 | L14: =Table1348956711[[#This Row],[ ألأيجار]]+Table1348956711[[#This Row],[ماء]] -> 230000 | N14: 230000 | O14: محلات | P14: زيد بن عباس بن عجير العتيبي | Q14: 9
A15: A | D15: =IF(Table1348956711[[#This Row],[ تاريخ الانتهاء]]<$B$4,$B$4-Table1348956711[[#This Row],[ تاريخ الانتهاء]],0) -> 39 | G15: 2018-02-15 | H15: 2017-02-26 | J15: =Table1348956711[[#This Row],[الإجمالي]]-Table1348956711[[#This Row],[المطلوب]]-Table1348956711[[#This Row],[المدفوع]] -> 9150 | K15: =(Table1348956711[[#This Row],[الإجمالي]]/$Q$3)*Table1348956711[[#This Row],[ طريقة الدفع]] -> 0 | L15: =Table1348956711[[#This Row],[ ألأيجار]]+Table1348956711[[#This Row],[ماء]] -> 9150 | N15: 9150 | O15: سعي | P15: عبداللة سعود العميري | Q15: 10
A16: B | K16: =SUBTOTAL(109,Table1348956711[المطلوب]) -> 0 | L16: =SUBTOTAL(109,Table1348956711[الإجمالي]) -> 691150 | M16: =SUBTOTAL(109,Table1348956711[ماء]) -> 280000 | N16: =SUBTOTAL(109,Table1348956711[[ ألأيجار]]) -> 411150
A17: B
A18: B
A19: B
A20: B
A21: B
A22: B
A23: B
A24: B
A25: B
A26: B
A27: B
A28: B
A29: B
A30: B
A31: B
A32: B
A33: B
A34: B
A35: B

Sheet سند قبض
D1: سند قبض
D3: Receipt Vouchrt | H3: =TODAY() -> 2018-03-26 | J3: تاريخ السند | P3: سلطان | Q3: 1
H4: =H3 -> 2018-03-26 | J4: الموافق | P4: الجوهرة | Q4: 2
D5: 32 | J5: الرقم الضريبي | P5: البايونيه | Q5: 3
P6: الراكه | Q6: 4
A7: البايونيه | B7: عقار | C7: 3 | D7: شقه رقم | E7: =B28 -> 0 | F7: جوال | G7: =O28 -> مانوج تايبارامبو سيفاداس | J7: استلمنا من : | M7: =M28 -> 12000 | N7: ايجار سنوي | P7: سعد | Q7: 5 | S7: =IFERROR(VLOOKUP(A7,P3:Q12,2,),0) -> 3
A8: البيان Description | G8: النوع Type | I8: المبلغ Amount | M8: =M7/12 -> 1000 | N8: شهري | P8: نايف | Q8: 6
A9: =M28 -> 12000 | B9: الايجار السنوي | C9: دفعه من الايجار | G9: الايجار | I9: 1000 | M9: =M7/366 -> 32.78688525 | N9: يومي | P9: الدمام | Q9: 7
A10: =DATE(YEAR(D10)+M11,MONTH(D10)+M12,DAY(D10)+M13) -> 2018-06-12 | B10: الي تاريخ | D10: =F28 -> 2018-05-14 | E10: وذلك للفترة من تاريخ | M10: =I9/M9 -> 30.5 | N10: باليوم | P10: الحزام | Q10: 8
A11: =A10 -> 2018-06-12 | B11: TO | D11: =D10 -> 2018-05-14 | E11: FROM | L11: =M7*M11 -> 0 | M11: =DATEDIF(1,M10,"y") -> 0 | N11: سنه | P11: ناصر | Q11: 9
A12: المياة وكهرباء | G12: المياة | I12: 0 | L12: =M8*M12 -> 0 | M12: =DATEDIF(1,M10,"yM") -> 0 | N12: شهر | P12: منوع | Q12: 10
A13: التأمين | G13: قبض التأمين | I13: 0 | L13: =M9*M13 -> 950.8196721 | M13: =DATEDIF(1,M10,"MD")+O13 -> 29 | N13: يوم
A14: اتعاب المكتب | G14: السعي | I14: 0 | L14: =SUM(L11:L13) -> 950.8196721
A15: صيانه | G15: صيانه | I15: 0 | L15: =L14-I9 -> -49.18032787
A16: مبلغ الضريبة | G16: القيمه المضافه | I16: 0
A17: =IF(I17=0,"",CONCATENATE("فقط"," ",sformatnumber(I17)," ريالاً ",IF(ISERROR(FIND(".",I17))," ","و"),IF(ISERROR(FIND(".",I17))," ",CONCATENATE(sformatnumber(IF(LEN(RIGHT(I17,LEN(I17)-FIND(".",I17)))=1,RIGHT(I17,LEN(I17)-FIND(".",I17))*10,RIGHT(I17,LEN(I17)-FIND(".",I17))))," هللة "))," لا غیر")) -> فقط الف ريالاً لا غیر | G17: المجموع Total | I17: =SUM(I9:J16) -> 1000
B19: التوقيع Sign | I19: الختم
K23: =CONCATENATE("'",A7,"'","!","A1:IQ9999") -> 'البايونيه'!A1:IQ9999 | M23: النطاق
K24: =MATCH(C7,INDEX(INDIRECT(K23),,15),0) -> 8 | M24: الصف
I25: =K25+3 -> 7 | K25: =MATCH(H4,INDEX(INDIRECT(K23),15,),0) -> 4 | M25: العمود
I26: =ADDRESS(K24,I25,4) -> G8 | K26: =ADDRESS(K24,K25,4) -> D8
A28: =INDEX(INDIRECT($K$23),$K$24,COLUMN()+$K$25-3) -> بدون تأمين | B28: 0 | C28: =INDEX(INDIRECT($K$23),$K$24,COLUMN()+$K$25-3) -> 0 | D28: =INDEX(INDIRECT($K$23),$K$24,COLUMN()+$K$25-3) -> 0 | E28: 0 | F28: 2018-05-14 | H28: 6 | I28: 6300 | J28: 6300 | K28: 12600 | L28: 600 | M28: 12000 | N28: 3 | O28: مانوج تايبارامبو سيفاداس
